{"text_format":"1","workbook":"xlsx","n_sheets":8,"sheets":["Orientación","Matriz","Listas","P-codes","Actividades","Hogares","Beneficiarios","Tendencias"],"not_rendered":{"charts":0,"images":1,"macros":0,"external_links":0,"defined_names":6,"comments":0,"pivot_tables":15},"unopened":[],"bounds":{"document_bytes":16777216,"sheet_cells":100000,"rows_first":2000,"rows_last":500,"rows_between":2000,"halvings":0,"cell_chars":16384,"cell_head_chars":4096},"cells_cut":0,"cells_raw":0,"read":"whole","date_system":"1900"}

{"sheet":"Orientación","index":0,"n_rows":42,"n_cols":5,"rows_kept":42,"cut":false,"hidden":false,"merged":[[21,1,22,1],[23,1,24,1],[38,1,41,1],[25,1,37,1],[3,1,3,4],[1,1,1,4],[0,1,0,4],[6,1,9,1],[10,1,15,1],[17,1,20,1]]}
[]
[null,"Sector de Alojamiento de El Salvador 5Ws: Orientación"]
[]
[null,"5W, de las 'w' del inglés Who is doing What, Where and When for Whom / Quién hace qué, dónde, cuándo y para quién) es una herramienta de coordinación diseñada para ayudar al Sector / Grupo de Alojamiento de El Salvador a recopilar y compartir información sobre las operaciones de los socios, así como a analizar y hacer un seguimiento de las actividades de los miembros del Grupo y del progreso del sector en su conjunto en el cumplimiento de los objetivos claves.\n\nEl 'Grupo Sectorial de Alojamiento' de El Salvador actualiza los datos regularmente (al menos entre una de sus reuniones y la siguiente). Se enviarán recordatorios individuales a las organizaciones del grupo conforme a esta regularidad para que cada socio envíe información sobre las actividades relacionadas con el alojamiento . Todos los datos recibidos se agregarán a la base de datos y se compartirán con todos los miembros del grupo. \n\nInstrucciones / REGLAS CLAVES para ACTUALIZAR los datos de la 5W:\n\n1.- Cada socio debe, SOLO, Y EXCLUSIVAMENTE, COMPLETAR LOS DATOS DE SU ORGANIZACIÓN EN LA PESTAÑA LLAMADA MATRIZ, y hacerlo considerando lo siguiente aquí abajo,\n2.- UNA línea de la matriz contendrá información sobre UNA distribución o prestación de servicios, correspondiente a UN tipo de actividad en UN municipio.\n\nSi una actividad se desarrolla en varios municipios, por favor, complete la información para cada municipio en líneas separadas.\nSi se informa de múltiples actividades para el mismo municipio, informe de cada actividad en una línea separada. \nEn ambos casos, por favor, complete todo con el mayor detalle posible,  con especial atención a la distribución de edad y sexo de las personas a las que es dirigida la actividad, y las personas que finalmente fueron beneficiadas con esta actividad.\nSi una actividad abarca varios meses, informe, añada sólo de la asistencia realizada desde el reistro anterior. ES MUY IMPORTANTE PARA CONTABILIZAR LOS TOTALES NO DUPLICAR DATOS, AÑADIENDO SOLO LOS NÚMERO NUEVOS DESDE LA ÚLTIMA INFORMACIÓN QUE SE DIÓ. Las columnas Z y AH nos ayudarán a comprobar si estamos dando los datos con coherencia entre totales y parciales.  \n\nSi tiene alguna pregunta después de leer, también, las instrucciones del cuadro aquí abajo, por favor, póngase en contacto con cualquier persona del equipo de coordinación del sector de Alojamiento de El Salvador (veánse detalles de contacto actualizados en la lista de contactos / Directorio)"]
[]
[null,"Categoría","Columna","Necesario?","Orientación"]
[null,"Metadatos","Fecha de reporte","SÍ","Introduzca la fecha de hoy en formato DD/MM/AAAA."]
[null,null,"Año de reporte","NO","Este campo sera completado automáticamente en función de los datos introducidos anteriormente."]
[null,null,"Mes de reporte","NO","Este campo sera completado automáticamente en función de los datos introducidos anteriormente."]
[null,null,"Día de reporte","NO","Este campo sera completado automáticamente en función de los datos introducidos anteriormente."]
[null,"QUIÉN","Organización lider","SÍ","Seleccione en la lista desplegable la organización que dirige este proyecto."]
[null,null,"Organización lider: Otra","NO","Rellene este campo sólo si la organización deseada no está en la lista desplegable."]
[null,null,"Organización implementadora","NO","Seleccione en la lista desplegable la organización que ejecuta este proyecto (si es diferente de la organización líder)."]
[null,null,"Organización implementadora: Otra","NO","Rellene este campo sólo si la organización deseada no está en la lista desplegable."]
[null,null,"Donante","SÍ","Seleccione en la lista desplegable el donante que financia este proyecto."]
[null,null,"Donante: Otra","NO","Rellene este campo sólo si la organización deseada no está en el cuadro desplegable."]
[null,"Estatus","Estatus de la actividad","SÍ","Seleccione una de las siguientes opciones del menú desplegable: \nPlanificada: La acción está prevista para los próximos meses, pero aún no ha tenido lugar.\nEn curso: La acción para este periodo ha comenzado pero aún no ha finalizado.\nCompletada: La acción para este periodo se ha completado en su totalidad.\nCancelada: La acción para este periodo estaba prevista pero se ha suspendido.\nDuplicada: La acción para este periodo ha sido marcada como duplicación del mismo tipo de actividad de otra organización."]
[null,"DÓNDE","Departamento (Admin 1)","SÍ","Seleccione el departamento en el que tuvo lugar la distribución."]
[null,null,"Admin 1 p-code","NO","Este campo sera completado automáticamente a partir de los datos introducidos anteriormente."]
[null,null,"Municipio (Admin 2)","SÍ","Seleccione el municipio en el que tuvo lugar la distribución."]
[null,null,"Admin 2 p-code","NO","Este campo sera completado automáticamente en función de los datos introducidos anteriormente."]
[null,"QUE","Actividad sectorial","SÍ","Seleccione en la lista desplegable el tipo de actividad."]
[null,null,"Modalidad","SÍ","Seleccione en la lista desplegable la modalidad de asistencia prestada."]
[null,"CUANDO","Fecha de inicio de la actividad","SÍ","Introduzca la fecha en la que comenzó o comenzará esta actividad en formato DD/MM/AAAA."]
[null,null,"Fecha prevista de finalización de la actividad","SÍ","Introduzca la fecha en la que finalizó o finalizará esta actividad en formato DD/MM/AAAA."]
[null,"A QUIÉN","Actividad con beneficiarios recurrentes","SÍ","Seleccione \"Sí\" si esta actividad se llevó a cabo con beneficiarios que han recibido ayuda anteriormente este año; en caso contrario, seleccione \"No\"."]
[null,null,"Total de hogares asistidos en este periodo","SÍ","Indique el número total de hogares en este municipio que han recibido ayuda a través de esta actividad."]
[null,null,"Hogares de la comunidad de acogida","SÍ","Desglose el número de hogares asistidos por categoría."]
[null,null,"Hogares desplazados","SÍ","Desglose el número de hogares asistidos por categoría."]
[null,null,"Verificación de total","NO","Este campo contiene una comprobación automática para verificar si el número total de beneficiarios coincide con la suma de todos los grupos de beneficiarios pertinentes."]
[null,null,"Total de personas asistidas en el periodo","SÍ","Introduzca el número total de personas asistidas en este municipio a través de esta actividad."]
[null,null,"Niñas de 0 a 18 años","SÍ","Desglose del número de personas asistidas por categoría."]
[null,null,"Niños de 0 a 18 años","SÍ","Desglose del número de personas asistidas por categoría."]
[null,null,"Mujeres de 18 a 60 años","SÍ","Desglose del número de personas asistidas por categoría."]
[null,null,"Hombres de 18 a 60 años","SÍ","Desglose del número de personas asistidas por categoría."]
[null,null,"Mujeres de 60 años o mas","SÍ","Desglose del número de personas asistidas por categoría."]
[null,null,"Hombres de 60 años o mas","SÍ","Desglose del número de personas asistidas por categoría."]
[null,null,"Verificación de total ","NO","Este campo contiene una comprobación automática para verificar si el número total de beneficiarios coincide con la suma de todos los grupos de beneficiarios pertinentes."]
[null,"Información adicional","Comentarios","NO","Por favor, comparta cualquier otra información adicional sobre esta actividad que pueda ser de interés para los socios del Grupo de Alojamiento."]
[null,null,"Nombre del punto de contacto (suprimido antes de la publicación)","SÍ","Indique los datos de la persona de contacto de la organización informante que pueda aportar mas informacion sobre esta actividad en caso de necesidad."]
[null,null,"Número de teléfono del punto de contacto (suprimido antes de la publicación)","SÍ","Indique los datos de la persona de contacto de la organización informante que pueda aportar mas informacion sobre esta actividad en caso de necesidad."]
[null,null,"Correo electrónico del punto de contacto (suprimido antes de la publicación)","SÍ","Indique los datos de la persona de contacto de la organización informante que pueda aportar mas informacion sobre esta actividad en caso de necesidad."]

{"sheet":"Matriz","index":1,"n_rows":101,"n_cols":38,"rows_kept":101,"cut":false,"hidden":false,"merged":[]}
[null,null,null,null,null,null,"Sector de Alojamiento de El Salvador 5Ws"]
[]
["Metadatos",null,null,null,"QUIÉN",null,null,null,null,null,"Estatus","DÓNDE",null,null,null,"QUÉ",null,null,null,"CUANDO",null,"A QUIÉN",null,null,null,null,null,null,null,null,null,null,null,null,"Información adicional"]
[null,null,null,null,null,null,null,null,null,null,null,null,null,null,null,null,null,null,null,null,null,null,"Hogares",null,null,null,"Beneficiarios"]
["Fecha de reporte","Año de reporte","Mes de reporte","Día de reporte","Organización lider","Organización lider: Otra","Organización implementadora","Organización implementadora: Otra","Donante","Donante: Otra","Estatus de la actividad","Departamento (Admin 1)","Admin 1 p-code","Municipio (Admin 2)","Admin 2 p-code","Actividad sectorial","Actividad sectorial: Otra","Modalidad","Modalidad: Otra","Fecha de inicio de la actividad","Fecha prevista de finalización de la actividad","Actividad con personas asistidas recurrentes","Total de hogares asistidos en el periodo entre reportes","Total de hogares asistidos en el periodo entre reportes2","De este total son hogares desplazados","Verificación de total","Total de personas asistidas en el periodo entre reportes","De este total son niñas de 0 a 18 años","De este total son niños de 0 a 18 años","De este total son mujeres de 18 a 60 años","De este total son hombres de 18 a 60 años","De este total son mujeres de 60 años o mas","De este total son hombres de 60 años o mas","Verificación de total ","Comentarios","Nombre de la persona de contacto (suprimir antes de la publicación)","Número de teléfono de la persona de contacto (suprimir antes de la publicación)","Correo electrónico de la persona de contacto (suprimir antes de la publicación)"]
[null,{"$f":"IF($A6<>\"\",YEAR($A6),\"\")","v":""},{"$f":"IF($A6<>\"\",TEXT($A6,\"[$-es-SV]mmmm\"),\"\")","v":""},{"$f":"IF($A6<>\"\",DAY($A6),\"\")","v":""},null,{"$f":"IF(E6=\"Otra\",\"Escriba un nombre aquí\",IF(E6<>\"\",\"NA\",\"\"))","v":""},null,{"$f":"IF(G6=\"Otra\",\"Escriba un nombre aquí\",IF(G6<>\"\",\"NA\",\"\"))","v":""},null,{"$f":"IF(I6=\"Otra\",\"Escriba un nombre aquí\",IF(I6<>\"\",\"NA\",\"\"))","v":""},null,null,{"$f":"IFERROR(VLOOKUP(Table2[[#This Row],[Departamento (Admin 1)]],'P-codes'!$E$2:$F$15,2,FALSE),\"\")","v":""},null,{"$f":"IFERROR(VLOOKUP(Table2[[#This Row],[Municipio (Admin 2)]],'P-codes'!$C$2:$D$267,2,FALSE),\"\")","v":""},null,{"$f":"IF(P6=\"Otra\",\"Escriba un nombre aquí\",IF(P6<>\"\",\"NA\",\"\"))","v":""},null,{"$f":"IF(R6=\"Otra\",\"Escriba un nombre aquí\",IF(R6<>\"\",\"NA\",\"\"))","v":""},null,null,null,null,null,null,{"$f":"IF(SUM(Table2[[#This Row],[Total de hogares asistidos en el periodo entre reportes]],Table2[[#This Row],[Total de hogares asistidos en el periodo entre reportes2]:[De este total son hogares desplazados]])<>0,IF(SUM(Table2[[#This Row],[Total de hogares asistidos en el periodo entre reportes2]:[De este total son hogares desplazados]])=Table2[[#This Row],[Total de hogares asistidos en el periodo entre reportes]],0,1),\"\")","v":""},null,null,null,null,null,null,null,{"$f":"IF(SUM(Table2[[#This Row],[Total de personas asistidas en el periodo entre reportes]],Table2[[#This Row],[De este total son niñas de 0 a 18 años]:[De este total son hombres de 60 años o mas]])<>0,IF(SUM(Table2[[#This Row],[De este total son niñas de 0 a 18 años]:[De este total son hombres de 60 años o mas]])=Table2[[#This Row],[Total de personas asistidas en el periodo entre reportes]],0,1),\"\")","v":""},"-","-","-","-"]
[null,{"$f":"IF($A7<>\"\",YEAR($A7),\"\")","v":""},"","",null,"",null,"",null,"",null,null,{"$f":"IFERROR(VLOOKUP(Table2[[#This Row],[Departamento (Admin 1)]],'P-codes'!$E$2:$F$15,2,FALSE),\"\")","v":""},null,{"$f":"IFERROR(VLOOKUP(Table2[[#This Row],[Municipio (Admin 2)]],'P-codes'!$C$2:$D$267,2,FALSE),\"\")","v":""},null,"",null,"",null,null,null,null,null,null,{"$f":"IF(SUM(Table2[[#This Row],[Total de hogares asistidos en el periodo entre reportes]],Table2[[#This Row],[Total de hogares asistidos en el periodo entre reportes2]:[De este total son hogares desplazados]])<>0,IF(SUM(Table2[[#This Row],[Total de hogares asistidos en el periodo entre reportes2]:[De este total son hogares desplazados]])=Table2[[#This Row],[Total de hogares asistidos en el periodo entre reportes]],0,1),\"\")","v":""},null,null,null,null,null,null,null,{"$f":"IF(SUM(Table2[[#This Row],[Total de personas asistidas en el periodo entre reportes]],Table2[[#This Row],[De este total son niñas de 0 a 18 años]:[De este total son hombres de 60 años o mas]])<>0,IF(SUM(Table2[[#This Row],[De este total son niñas de 0 a 18 años]:[De este total son hombres de 60 años o mas]])=Table2[[#This Row],[Total de personas asistidas en el periodo entre reportes]],0,1),\"\")","v":""},"-","-","-","-"]
[null,"","","",null,"",null,"",null,"",null,null,{"$f":"IFERROR(VLOOKUP(Table2[[#This Row],[Departamento (Admin 1)]],'P-codes'!$E$2:$F$15,2,FALSE),\"\")","v":""},null,{"$f":"IFERROR(VLOOKUP(Table2[[#This Row],[Municipio (Admin 2)]],'P-codes'!$C$2:$D$267,2,FALSE),\"\")","v":""},null,"",null,"",null,null,null,null,null,null,{"$f":"IF(SUM(Table2[[#This Row],[Total de hogares asistidos en el periodo entre reportes]],Table2[[#This Row],[Total de hogares asistidos en el periodo entre reportes2]:[De este total son hogares desplazados]])<>0,IF(SUM(Table2[[#This Row],[Total de hogares asistidos en el periodo entre reportes2]:[De este total son hogares desplazados]])=Table2[[#This Row],[Total de hogares asistidos en el periodo entre reportes]],0,1),\"\")","v":""},null,null,null,null,null,null,null,{"$f":"IF(SUM(Table2[[#This Row],[Total de personas asistidas en el periodo entre reportes]],Table2[[#This Row],[De este total son niñas de 0 a 18 años]:[De este total son hombres de 60 años o mas]])<>0,IF(SUM(Table2[[#This Row],[De este total son niñas de 0 a 18 años]:[De este total son hombres de 60 años o mas]])=Table2[[#This Row],[Total de personas asistidas en el periodo entre reportes]],0,1),\"\")","v":""},"-","-","-","-"]
[null,"","","",null,"",null,"",null,"",null,null,{"$f":"IFERROR(VLOOKUP(Table2[[#This Row],[Departamento (Admin 1)]],'P-codes'!$E$2:$F$15,2,FALSE),\"\")","v":""},null,{"$f":"IFERROR(VLOOKUP(Table2[[#This Row],[Municipio (Admin 2)]],'P-codes'!$C$2:$D$267,2,FALSE),\"\")","v":""},null,"",null,"",null,null,null,null,null,null,{"$f":"IF(SUM(Table2[[#This Row],[Total de hogares asistidos en el periodo entre reportes]],Table2[[#This Row],[Total de hogares asistidos en el periodo entre reportes2]:[De este total son hogares desplazados]])<>0,IF(SUM(Table2[[#This Row],[Total de hogares asistidos en el periodo entre reportes2]:[De este total son hogares desplazados]])=Table2[[#This Row],[Total de hogares asistidos en el periodo entre reportes]],0,1),\"\")","v":""},null,null,null,null,null,null,null,{"$f":"IF(SUM(Table2[[#This Row],[Total de personas asistidas en el periodo entre reportes]],Table2[[#This Row],[De este total son niñas de 0 a 18 años]:[De este total son hombres de 60 años o mas]])<>0,IF(SUM(Table2[[#This Row],[De este total son niñas de 0 a 18 años]:[De este total son hombres de 60 años o mas]])=Table2[[#This Row],[Total de personas asistidas en el periodo entre reportes]],0,1),\"\")","v":""},"-","-","-","-"]
[null,"","","",null,"",null,"",null,"",null,null,{"$f":"IFERROR(VLOOKUP(Table2[[#This Row],[Departamento (Admin 1)]],'P-codes'!$E$2:$F$15,2,FALSE),\"\")","v":""},null,{"$f":"IFERROR(VLOOKUP(Table2[[#This Row],[Municipio (Admin 2)]],'P-codes'!$C$2:$D$267,2,FALSE),\"\")","v":""},null,"",null,"",null,null,null,null,null,null,{"$f":"IF(SUM(Table2[[#This Row],[Total de hogares asistidos en el periodo entre reportes]],Table2[[#This Row],[Total de hogares asistidos en el periodo entre reportes2]:[De este total son hogares desplazados]])<>0,IF(SUM(Table2[[#This Row],[Total de hogares asistidos en el periodo entre reportes2]:[De este total son hogares desplazados]])=Table2[[#This Row],[Total de hogares asistidos en el periodo entre reportes]],0,1),\"\")","v":""},null,null,null,null,null,null,null,{"$f":"IF(SUM(Table2[[#This Row],[Total de personas asistidas en el periodo entre reportes]],Table2[[#This Row],[De este total son niñas de 0 a 18 años]:[De este total son hombres de 60 años o mas]])<>0,IF(SUM(Table2[[#This Row],[De este total son niñas de 0 a 18 años]:[De este total son hombres de 60 años o mas]])=Table2[[#This Row],[Total de personas asistidas en el periodo entre reportes]],0,1),\"\")","v":""},"-","-","-","-"]
[null,"","","",null,"",null,"",null,"",null,null,{"$f":"IFERROR(VLOOKUP(Table2[[#This Row],[Departamento (Admin 1)]],'P-codes'!$E$2:$F$15,2,FALSE),\"\")","v":""},null,{"$f":"IFERROR(VLOOKUP(Table2[[#This Row],[Municipio (Admin 2)]],'P-codes'!$C$2:$D$267,2,FALSE),\"\")","v":""},null,"",null,"",null,null,null,null,null,null,{"$f":"IF(SUM(Table2[[#This Row],[Total de hogares asistidos en el periodo entre reportes]],Table2[[#This Row],[Total de hogares asistidos en el periodo entre reportes2]:[De este total son hogares desplazados]])<>0,IF(SUM(Table2[[#This Row],[Total de hogares asistidos en el periodo entre reportes2]:[De este total son hogares desplazados]])=Table2[[#This Row],[Total de hogares asistidos en el periodo entre reportes]],0,1),\"\")","v":""},null,null,null,null,null,null,null,{"$f":"IF(SUM(Table2[[#This Row],[Total de personas asistidas en el periodo entre reportes]],Table2[[#This Row],[De este total son niñas de 0 a 18 años]:[De este total son hombres de 60 años o mas]])<>0,IF(SUM(Table2[[#This Row],[De este total son niñas de 0 a 18 años]:[De este total son hombres de 60 años o mas]])=Table2[[#This Row],[Total de personas asistidas en el periodo entre reportes]],0,1),\"\")","v":""},"-","-","-","-"]
[null,"","","",null,"",null,"",null,"",null,null,{"$f":"IFERROR(VLOOKUP(Table2[[#This Row],[Departamento (Admin 1)]],'P-codes'!$E$2:$F$15,2,FALSE),\"\")","v":""},null,{"$f":"IFERROR(VLOOKUP(Table2[[#This Row],[Municipio (Admin 2)]],'P-codes'!$C$2:$D$267,2,FALSE),\"\")","v":""},null,"",null,"",null,null,null,null,null,null,{"$f":"IF(SUM(Table2[[#This Row],[Total de hogares asistidos en el periodo entre reportes]],Table2[[#This Row],[Total de hogares asistidos en el periodo entre reportes2]:[De este total son hogares desplazados]])<>0,IF(SUM(Table2[[#This Row],[Total de hogares asistidos en el periodo entre reportes2]:[De este total son hogares desplazados]])=Table2[[#This Row],[Total de hogares asistidos en el periodo entre reportes]],0,1),\"\")","v":""},null,null,null,null,null,null,null,{"$f":"IF(SUM(Table2[[#This Row],[Total de personas asistidas en el periodo entre reportes]],Table2[[#This Row],[De este total son niñas de 0 a 18 años]:[De este total son hombres de 60 años o mas]])<>0,IF(SUM(Table2[[#This Row],[De este total son niñas de 0 a 18 años]:[De este total son hombres de 60 años o mas]])=Table2[[#This Row],[Total de personas asistidas en el periodo entre reportes]],0,1),\"\")","v":""},"-","-","-","-"]
[null,"","","",null,"",null,"",null,"",null,null,{"$f":"IFERROR(VLOOKUP(Table2[[#This Row],[Departamento (Admin 1)]],'P-codes'!$E$2:$F$15,2,FALSE),\"\")","v":""},null,{"$f":"IFERROR(VLOOKUP(Table2[[#This Row],[Municipio (Admin 2)]],'P-codes'!$C$2:$D$267,2,FALSE),\"\")","v":""},null,"",null,"",null,null,null,null,null,null,{"$f":"IF(SUM(Table2[[#This Row],[Total de hogares asistidos en el periodo entre reportes]],Table2[[#This Row],[Total de hogares asistidos en el periodo entre reportes2]:[De este total son hogares desplazados]])<>0,IF(SUM(Table2[[#This Row],[Total de hogares asistidos en el periodo entre reportes2]:[De este total son hogares desplazados]])=Table2[[#This Row],[Total de hogares asistidos en el periodo entre reportes]],0,1),\"\")","v":""},null,null,null,null,null,null,null,{"$f":"IF(SUM(Table2[[#This Row],[Total de personas asistidas en el periodo entre reportes]],Table2[[#This Row],[De este total son niñas de 0 a 18 años]:[De este total son hombres de 60 años o mas]])<>0,IF(SUM(Table2[[#This Row],[De este total son niñas de 0 a 18 años]:[De este total son hombres de 60 años o mas]])=Table2[[#This Row],[Total de personas asistidas en el periodo entre reportes]],0,1),\"\")","v":""},"-","-","-","-"]
[null,"","","",null,"",null,"",null,"",null,null,{"$f":"IFERROR(VLOOKUP(Table2[[#This Row],[Departamento (Admin 1)]],'P-codes'!$E$2:$F$15,2,FALSE),\"\")","v":""},null,{"$f":"IFERROR(VLOOKUP(Table2[[#This Row],[Municipio (Admin 2)]],'P-codes'!$C$2:$D$267,2,FALSE),\"\")","v":""},null,"",null,"",null,null,null,null,null,null,{"$f":"IF(SUM(Table2[[#This Row],[Total de hogares asistidos en el periodo entre reportes]],Table2[[#This Row],[Total de hogares asistidos en el periodo entre reportes2]:[De este total son hogares desplazados]])<>0,IF(SUM(Table2[[#This Row],[Total de hogares asistidos en el periodo entre reportes2]:[De este total son hogares desplazados]])=Table2[[#This Row],[Total de hogares asistidos en el periodo entre reportes]],0,1),\"\")","v":""},null,null,null,null,null,null,null,{"$f":"IF(SUM(Table2[[#This Row],[Total de personas asistidas en el periodo entre reportes]],Table2[[#This Row],[De este total son niñas de 0 a 18 años]:[De este total son hombres de 60 años o mas]])<>0,IF(SUM(Table2[[#This Row],[De este total son niñas de 0 a 18 años]:[De este total son hombres de 60 años o mas]])=Table2[[#This Row],[Total de personas asistidas en el periodo entre reportes]],0,1),\"\")","v":""},"-","-","-","-"]
[null,"","","",null,"",null,"",null,"",null,null,{"$f":"IFERROR(VLOOKUP(Table2[[#This Row],[Departamento (Admin 1)]],'P-codes'!$E$2:$F$15,2,FALSE),\"\")","v":""},null,{"$f":"IFERROR(VLOOKUP(Table2[[#This Row],[Municipio (Admin 2)]],'P-codes'!$C$2:$D$267,2,FALSE),\"\")","v":""},null,"",null,"",null,null,null,null,null,null,{"$f":"IF(SUM(Table2[[#This Row],[Total de hogares asistidos en el periodo entre reportes]],Table2[[#This Row],[Total de hogares asistidos en el periodo entre reportes2]:[De este total son hogares desplazados]])<>0,IF(SUM(Table2[[#This Row],[Total de hogares asistidos en el periodo entre reportes2]:[De este total son hogares desplazados]])=Table2[[#This Row],[Total de hogares asistidos en el periodo entre reportes]],0,1),\"\")","v":""},null,null,null,null,null,null,null,{"$f":"IF(SUM(Table2[[#This Row],[Total de personas asistidas en el periodo entre reportes]],Table2[[#This Row],[De este total son niñas de 0 a 18 años]:[De este total son hombres de 60 años o mas]])<>0,IF(SUM(Table2[[#This Row],[De este total son niñas de 0 a 18 años]:[De este total son hombres de 60 años o mas]])=Table2[[#This Row],[Total de personas asistidas en el periodo entre reportes]],0,1),\"\")","v":""},"-","-","-","-"]
[null,"","","",null,"",null,"",null,"",null,null,{"$f":"IFERROR(VLOOKUP(Table2[[#This Row],[Departamento (Admin 1)]],'P-codes'!$E$2:$F$15,2,FALSE),\"\")","v":""},null,{"$f":"IFERROR(VLOOKUP(Table2[[#This Row],[Municipio (Admin 2)]],'P-codes'!$C$2:$D$267,2,FALSE),\"\")","v":""},null,"",null,"",null,null,null,null,null,null,{"$f":"IF(SUM(Table2[[#This Row],[Total de hogares asistidos en el periodo entre reportes]],Table2[[#This Row],[Total de hogares asistidos en el periodo entre reportes2]:[De este total son hogares desplazados]])<>0,IF(SUM(Table2[[#This Row],[Total de hogares asistidos en el periodo entre reportes2]:[De este total son hogares desplazados]])=Table2[[#This Row],[Total de hogares asistidos en el periodo entre reportes]],0,1),\"\")","v":""},null,null,null,null,null,null,null,{"$f":"IF(SUM(Table2[[#This Row],[Total de personas asistidas en el periodo entre reportes]],Table2[[#This Row],[De este total son niñas de 0 a 18 años]:[De este total son hombres de 60 años o mas]])<>0,IF(SUM(Table2[[#This Row],[De este total son niñas de 0 a 18 años]:[De este total son hombres de 60 años o mas]])=Table2[[#This Row],[Total de personas asistidas en el periodo entre reportes]],0,1),\"\")","v":""},"-","-","-","-"]
[null,"","","",null,"",null,"",null,"",null,null,{"$f":"IFERROR(VLOOKUP(Table2[[#This Row],[Departamento (Admin 1)]],'P-codes'!$E$2:$F$15,2,FALSE),\"\")","v":""},null,{"$f":"IFERROR(VLOOKUP(Table2[[#This Row],[Municipio (Admin 2)]],'P-codes'!$C$2:$D$267,2,FALSE),\"\")","v":""},null,"",null,"",null,null,null,null,null,null,{"$f":"IF(SUM(Table2[[#This Row],[Total de hogares asistidos en el periodo entre reportes]],Table2[[#This Row],[Total de hogares asistidos en el periodo entre reportes2]:[De este total son hogares desplazados]])<>0,IF(SUM(Table2[[#This Row],[Total de hogares asistidos en el periodo entre reportes2]:[De este total son hogares desplazados]])=Table2[[#This Row],[Total de hogares asistidos en el periodo entre reportes]],0,1),\"\")","v":""},null,null,null,null,null,null,null,{"$f":"IF(SUM(Table2[[#This Row],[Total de personas asistidas en el periodo entre reportes]],Table2[[#This Row],[De este total son niñas de 0 a 18 años]:[De este total son hombres de 60 años o mas]])<>0,IF(SUM(Table2[[#This Row],[De este total son niñas de 0 a 18 años]:[De este total son hombres de 60 años o mas]])=Table2[[#This Row],[Total de personas asistidas en el periodo entre reportes]],0,1),\"\")","v":""},"-","-","-","-"]
[null,"","","",null,"",null,"",null,"",null,null,{"$f":"IFERROR(VLOOKUP(Table2[[#This Row],[Departamento (Admin 1)]],'P-codes'!$E$2:$F$15,2,FALSE),\"\")","v":""},null,{"$f":"IFERROR(VLOOKUP(Table2[[#This Row],[Municipio (Admin 2)]],'P-codes'!$C$2:$D$267,2,FALSE),\"\")","v":""},null,"",null,"",null,null,null,null,null,null,{"$f":"IF(SUM(Table2[[#This Row],[Total de hogares asistidos en el periodo entre reportes]],Table2[[#This Row],[Total de hogares asistidos en el periodo entre reportes2]:[De este total son hogares desplazados]])<>0,IF(SUM(Table2[[#This Row],[Total de hogares asistidos en el periodo entre reportes2]:[De este total son hogares desplazados]])=Table2[[#This Row],[Total de hogares asistidos en el periodo entre reportes]],0,1),\"\")","v":""},null,null,null,null,null,null,null,{"$f":"IF(SUM(Table2[[#This Row],[Total de personas asistidas en el periodo entre reportes]],Table2[[#This Row],[De este total son niñas de 0 a 18 años]:[De este total son hombres de 60 años o mas]])<>0,IF(SUM(Table2[[#This Row],[De este total son niñas de 0 a 18 años]:[De este total son hombres de 60 años o mas]])=Table2[[#This Row],[Total de personas asistidas en el periodo entre reportes]],0,1),\"\")","v":""},"-","-","-","-"]
[null,"","","",null,"",null,"",null,"",null,null,{"$f":"IFERROR(VLOOKUP(Table2[[#This Row],[Departamento (Admin 1)]],'P-codes'!$E$2:$F$15,2,FALSE),\"\")","v":""},null,{"$f":"IFERROR(VLOOKUP(Table2[[#This Row],[Municipio (Admin 2)]],'P-codes'!$C$2:$D$267,2,FALSE),\"\")","v":""},null,"",null,"",null,null,null,null,null,null,{"$f":"IF(SUM(Table2[[#This Row],[Total de hogares asistidos en el periodo entre reportes]],Table2[[#This Row],[Total de hogares asistidos en el periodo entre reportes2]:[De este total son hogares desplazados]])<>0,IF(SUM(Table2[[#This Row],[Total de hogares asistidos en el periodo entre reportes2]:[De este total son hogares desplazados]])=Table2[[#This Row],[Total de hogares asistidos en el periodo entre reportes]],0,1),\"\")","v":""},null,null,null,null,null,null,null,{"$f":"IF(SUM(Table2[[#This Row],[Total de personas asistidas en el periodo entre reportes]],Table2[[#This Row],[De este total son niñas de 0 a 18 años]:[De este total son hombres de 60 años o mas]])<>0,IF(SUM(Table2[[#This Row],[De este total son niñas de 0 a 18 años]:[De este total son hombres de 60 años o mas]])=Table2[[#This Row],[Total de personas asistidas en el periodo entre reportes]],0,1),\"\")","v":""},"-","-","-","-"]
[null,"","","",null,"",null,"",null,"",null,null,{"$f":"IFERROR(VLOOKUP(Table2[[#This Row],[Departamento (Admin 1)]],'P-codes'!$E$2:$F$15,2,FALSE),\"\")","v":""},null,{"$f":"IFERROR(VLOOKUP(Table2[[#This Row],[Municipio (Admin 2)]],'P-codes'!$C$2:$D$267,2,FALSE),\"\")","v":""},null,"",null,"",null,null,null,null,null,null,{"$f":"IF(SUM(Table2[[#This Row],[Total de hogares asistidos en el periodo entre reportes]],Table2[[#This Row],[Total de hogares asistidos en el periodo entre reportes2]:[De este total son hogares desplazados]])<>0,IF(SUM(Table2[[#This Row],[Total de hogares asistidos en el periodo entre reportes2]:[De este total son hogares desplazados]])=Table2[[#This Row],[Total de hogares asistidos en el periodo entre reportes]],0,1),\"\")","v":""},null,null,null,null,null,null,null,{"$f":"IF(SUM(Table2[[#This Row],[Total de personas asistidas en el periodo entre reportes]],Table2[[#This Row],[De este total son niñas de 0 a 18 años]:[De este total son hombres de 60 años o mas]])<>0,IF(SUM(Table2[[#This Row],[De este total son niñas de 0 a 18 años]:[De este total son hombres de 60 años o mas]])=Table2[[#This Row],[Total de personas asistidas en el periodo entre reportes]],0,1),\"\")","v":""},"-","-","-","-"]
[null,"","","",null,"",null,"",null,"",null,null,{"$f":"IFERROR(VLOOKUP(Table2[[#This Row],[Departamento (Admin 1)]],'P-codes'!$E$2:$F$15,2,FALSE),\"\")","v":""},null,{"$f":"IFERROR(VLOOKUP(Table2[[#This Row],[Municipio (Admin 2)]],'P-codes'!$C$2:$D$267,2,FALSE),\"\")","v":""},null,"",null,"",null,null,null,null,null,null,{"$f":"IF(SUM(Table2[[#This Row],[Total de hogares asistidos en el periodo entre reportes]],Table2[[#This Row],[Total de hogares asistidos en el periodo entre reportes2]:[De este total son hogares desplazados]])<>0,IF(SUM(Table2[[#This Row],[Total de hogares asistidos en el periodo entre reportes2]:[De este total son hogares desplazados]])=Table2[[#This Row],[Total de hogares asistidos en el periodo entre reportes]],0,1),\"\")","v":""},null,null,null,null,null,null,null,{"$f":"IF(SUM(Table2[[#This Row],[Total de personas asistidas en el periodo entre reportes]],Table2[[#This Row],[De este total son niñas de 0 a 18 años]:[De este total son hombres de 60 años o mas]])<>0,IF(SUM(Table2[[#This Row],[De este total son niñas de 0 a 18 años]:[De este total son hombres de 60 años o mas]])=Table2[[#This Row],[Total de personas asistidas en el periodo entre reportes]],0,1),\"\")","v":""},"-","-","-","-"]
[null,"","","",null,"",null,"",null,"",null,null,{"$f":"IFERROR(VLOOKUP(Table2[[#This Row],[Departamento (Admin 1)]],'P-codes'!$E$2:$F$15,2,FALSE),\"\")","v":""},null,{"$f":"IFERROR(VLOOKUP(Table2[[#This Row],[Municipio (Admin 2)]],'P-codes'!$C$2:$D$267,2,FALSE),\"\")","v":""},null,"",null,"",null,null,null,null,null,null,{"$f":"IF(SUM(Table2[[#This Row],[Total de hogares asistidos en el periodo entre reportes]],Table2[[#This Row],[Total de hogares asistidos en el periodo entre reportes2]:[De este total son hogares desplazados]])<>0,IF(SUM(Table2[[#This Row],[Total de hogares asistidos en el periodo entre reportes2]:[De este total son hogares desplazados]])=Table2[[#This Row],[Total de hogares asistidos en el periodo entre reportes]],0,1),\"\")","v":""},null,null,null,null,null,null,null,{"$f":"IF(SUM(Table2[[#This Row],[Total de personas asistidas en el periodo entre reportes]],Table2[[#This Row],[De este total son niñas de 0 a 18 años]:[De este total son hombres de 60 años o mas]])<>0,IF(SUM(Table2[[#This Row],[De este total son niñas de 0 a 18 años]:[De este total son hombres de 60 años o mas]])=Table2[[#This Row],[Total de personas asistidas en el periodo entre reportes]],0,1),\"\")","v":""},"-","-","-","-"]
[null,"","","",null,"",null,"",null,"",null,null,{"$f":"IFERROR(VLOOKUP(Table2[[#This Row],[Departamento (Admin 1)]],'P-codes'!$E$2:$F$15,2,FALSE),\"\")","v":""},null,{"$f":"IFERROR(VLOOKUP(Table2[[#This Row],[Municipio (Admin 2)]],'P-codes'!$C$2:$D$267,2,FALSE),\"\")","v":""},null,"",null,"",null,null,null,null,null,null,{"$f":"IF(SUM(Table2[[#This Row],[Total de hogares asistidos en el periodo entre reportes]],Table2[[#This Row],[Total de hogares asistidos en el periodo entre reportes2]:[De este total son hogares desplazados]])<>0,IF(SUM(Table2[[#This Row],[Total de hogares asistidos en el periodo entre reportes2]:[De este total son hogares desplazados]])=Table2[[#This Row],[Total de hogares asistidos en el periodo entre reportes]],0,1),\"\")","v":""},null,null,null,null,null,null,null,{"$f":"IF(SUM(Table2[[#This Row],[Total de personas asistidas en el periodo entre reportes]],Table2[[#This Row],[De este total son niñas de 0 a 18 años]:[De este total son hombres de 60 años o mas]])<>0,IF(SUM(Table2[[#This Row],[De este total son niñas de 0 a 18 años]:[De este total son hombres de 60 años o mas]])=Table2[[#This Row],[Total de personas asistidas en el periodo entre reportes]],0,1),\"\")","v":""},"-","-","-","-"]
[null,"","","",null,"",null,"",null,"",null,null,{"$f":"IFERROR(VLOOKUP(Table2[[#This Row],[Departamento (Admin 1)]],'P-codes'!$E$2:$F$15,2,FALSE),\"\")","v":""},null,{"$f":"IFERROR(VLOOKUP(Table2[[#This Row],[Municipio (Admin 2)]],'P-codes'!$C$2:$D$267,2,FALSE),\"\")","v":""},null,"",null,"",null,null,null,null,null,null,{"$f":"IF(SUM(Table2[[#This Row],[Total de hogares asistidos en el periodo entre reportes]],Table2[[#This Row],[Total de hogares asistidos en el periodo entre reportes2]:[De este total son hogares desplazados]])<>0,IF(SUM(Table2[[#This Row],[Total de hogares asistidos en el periodo entre reportes2]:[De este total son hogares desplazados]])=Table2[[#This Row],[Total de hogares asistidos en el periodo entre reportes]],0,1),\"\")","v":""},null,null,null,null,null,null,null,{"$f":"IF(SUM(Table2[[#This Row],[Total de personas asistidas en el periodo entre reportes]],Table2[[#This Row],[De este total son niñas de 0 a 18 años]:[De este total son hombres de 60 años o mas]])<>0,IF(SUM(Table2[[#This Row],[De este total son niñas de 0 a 18 años]:[De este total son hombres de 60 años o mas]])=Table2[[#This Row],[Total de personas asistidas en el periodo entre reportes]],0,1),\"\")","v":""},"-","-","-","-"]
[null,"","","",null,"",null,"",null,"",null,null,{"$f":"IFERROR(VLOOKUP(Table2[[#This Row],[Departamento (Admin 1)]],'P-codes'!$E$2:$F$15,2,FALSE),\"\")","v":""},null,{"$f":"IFERROR(VLOOKUP(Table2[[#This Row],[Municipio (Admin 2)]],'P-codes'!$C$2:$D$267,2,FALSE),\"\")","v":""},null,"",null,"",null,null,null,null,null,null,{"$f":"IF(SUM(Table2[[#This Row],[Total de hogares asistidos en el periodo entre reportes]],Table2[[#This Row],[Total de hogares asistidos en el periodo entre reportes2]:[De este total son hogares desplazados]])<>0,IF(SUM(Table2[[#This Row],[Total de hogares asistidos en el periodo entre reportes2]:[De este total son hogares desplazados]])=Table2[[#This Row],[Total de hogares asistidos en el periodo entre reportes]],0,1),\"\")","v":""},null,null,null,null,null,null,null,{"$f":"IF(SUM(Table2[[#This Row],[Total de personas asistidas en el periodo entre reportes]],Table2[[#This Row],[De este total son niñas de 0 a 18 años]:[De este total son hombres de 60 años o mas]])<>0,IF(SUM(Table2[[#This Row],[De este total son niñas de 0 a 18 años]:[De este total son hombres de 60 años o mas]])=Table2[[#This Row],[Total de personas asistidas en el periodo entre reportes]],0,1),\"\")","v":""},"-","-","-","-"]
[null,"","","",null,"",null,"",null,"",null,null,{"$f":"IFERROR(VLOOKUP(Table2[[#This Row],[Departamento (Admin 1)]],'P-codes'!$E$2:$F$15,2,FALSE),\"\")","v":""},null,{"$f":"IFERROR(VLOOKUP(Table2[[#This Row],[Municipio (Admin 2)]],'P-codes'!$C$2:$D$267,2,FALSE),\"\")","v":""},null,"",null,"",null,null,null,null,null,null,{"$f":"IF(SUM(Table2[[#This Row],[Total de hogares asistidos en el periodo entre reportes]],Table2[[#This Row],[Total de hogares asistidos en el periodo entre reportes2]:[De este total son hogares desplazados]])<>0,IF(SUM(Table2[[#This Row],[Total de hogares asistidos en el periodo entre reportes2]:[De este total son hogares desplazados]])=Table2[[#This Row],[Total de hogares asistidos en el periodo entre reportes]],0,1),\"\")","v":""},null,null,null,null,null,null,null,{"$f":"IF(SUM(Table2[[#This Row],[Total de personas asistidas en el periodo entre reportes]],Table2[[#This Row],[De este total son niñas de 0 a 18 años]:[De este total son hombres de 60 años o mas]])<>0,IF(SUM(Table2[[#This Row],[De este total son niñas de 0 a 18 años]:[De este total son hombres de 60 años o mas]])=Table2[[#This Row],[Total de personas asistidas en el periodo entre reportes]],0,1),\"\")","v":""}]
[null,"","","",null,"",null,"",null,"",null,null,{"$f":"IFERROR(VLOOKUP(Table2[[#This Row],[Departamento (Admin 1)]],'P-codes'!$E$2:$F$15,2,FALSE),\"\")","v":""},null,{"$f":"IFERROR(VLOOKUP(Table2[[#This Row],[Municipio (Admin 2)]],'P-codes'!$C$2:$D$267,2,FALSE),\"\")","v":""},null,"",null,"",null,null,null,null,null,null,{"$f":"IF(SUM(Table2[[#This Row],[Total de hogares asistidos en el periodo entre reportes]],Table2[[#This Row],[Total de hogares asistidos en el periodo entre reportes2]:[De este total son hogares desplazados]])<>0,IF(SUM(Table2[[#This Row],[Total de hogares asistidos en el periodo entre reportes2]:[De este total son hogares desplazados]])=Table2[[#This Row],[Total de hogares asistidos en el periodo entre reportes]],0,1),\"\")","v":""},null,null,null,null,null,null,null,{"$f":"IF(SUM(Table2[[#This Row],[Total de personas asistidas en el periodo entre reportes]],Table2[[#This Row],[De este total son niñas de 0 a 18 años]:[De este total son hombres de 60 años o mas]])<>0,IF(SUM(Table2[[#This Row],[De este total son niñas de 0 a 18 años]:[De este total son hombres de 60 años o mas]])=Table2[[#This Row],[Total de personas asistidas en el periodo entre reportes]],0,1),\"\")","v":""}]
[null,"","","",null,"",null,"",null,"",null,null,{"$f":"IFERROR(VLOOKUP(Table2[[#This Row],[Departamento (Admin 1)]],'P-codes'!$E$2:$F$15,2,FALSE),\"\")","v":""},null,{"$f":"IFERROR(VLOOKUP(Table2[[#This Row],[Municipio (Admin 2)]],'P-codes'!$C$2:$D$267,2,FALSE),\"\")","v":""},null,"",null,"",null,null,null,null,null,null,{"$f":"IF(SUM(Table2[[#This Row],[Total de hogares asistidos en el periodo entre reportes]],Table2[[#This Row],[Total de hogares asistidos en el periodo entre reportes2]:[De este total son hogares desplazados]])<>0,IF(SUM(Table2[[#This Row],[Total de hogares asistidos en el periodo entre reportes2]:[De este total son hogares desplazados]])=Table2[[#This Row],[Total de hogares asistidos en el periodo entre reportes]],0,1),\"\")","v":""},null,null,null,null,null,null,null,{"$f":"IF(SUM(Table2[[#This Row],[Total de personas asistidas en el periodo entre reportes]],Table2[[#This Row],[De este total son niñas de 0 a 18 años]:[De este total son hombres de 60 años o mas]])<>0,IF(SUM(Table2[[#This Row],[De este total son niñas de 0 a 18 años]:[De este total son hombres de 60 años o mas]])=Table2[[#This Row],[Total de personas asistidas en el periodo entre reportes]],0,1),\"\")","v":""}]
[null,"","","",null,"",null,"",null,"",null,null,{"$f":"IFERROR(VLOOKUP(Table2[[#This Row],[Departamento (Admin 1)]],'P-codes'!$E$2:$F$15,2,FALSE),\"\")","v":""},null,{"$f":"IFERROR(VLOOKUP(Table2[[#This Row],[Municipio (Admin 2)]],'P-codes'!$C$2:$D$267,2,FALSE),\"\")","v":""},null,"",null,"",null,null,null,null,null,null,{"$f":"IF(SUM(Table2[[#This Row],[Total de hogares asistidos en el periodo entre reportes]],Table2[[#This Row],[Total de hogares asistidos en el periodo entre reportes2]:[De este total son hogares desplazados]])<>0,IF(SUM(Table2[[#This Row],[Total de hogares asistidos en el periodo entre reportes2]:[De este total son hogares desplazados]])=Table2[[#This Row],[Total de hogares asistidos en el periodo entre reportes]],0,1),\"\")","v":""},null,null,null,null,null,null,null,{"$f":"IF(SUM(Table2[[#This Row],[Total de personas asistidas en el periodo entre reportes]],Table2[[#This Row],[De este total son niñas de 0 a 18 años]:[De este total son hombres de 60 años o mas]])<>0,IF(SUM(Table2[[#This Row],[De este total son niñas de 0 a 18 años]:[De este total son hombres de 60 años o mas]])=Table2[[#This Row],[Total de personas asistidas en el periodo entre reportes]],0,1),\"\")","v":""}]
[null,"","","",null,"",null,"",null,"",null,null,{"$f":"IFERROR(VLOOKUP(Table2[[#This Row],[Departamento (Admin 1)]],'P-codes'!$E$2:$F$15,2,FALSE),\"\")","v":""},null,{"$f":"IFERROR(VLOOKUP(Table2[[#This Row],[Municipio (Admin 2)]],'P-codes'!$C$2:$D$267,2,FALSE),\"\")","v":""},null,"",null,"",null,null,null,null,null,null,{"$f":"IF(SUM(Table2[[#This Row],[Total de hogares asistidos en el periodo entre reportes]],Table2[[#This Row],[Total de hogares asistidos en el periodo entre reportes2]:[De este total son hogares desplazados]])<>0,IF(SUM(Table2[[#This Row],[Total de hogares asistidos en el periodo entre reportes2]:[De este total son hogares desplazados]])=Table2[[#This Row],[Total de hogares asistidos en el periodo entre reportes]],0,1),\"\")","v":""},null,null,null,null,null,null,null,{"$f":"IF(SUM(Table2[[#This Row],[Total de personas asistidas en el periodo entre reportes]],Table2[[#This Row],[De este total son niñas de 0 a 18 años]:[De este total son hombres de 60 años o mas]])<>0,IF(SUM(Table2[[#This Row],[De este total son niñas de 0 a 18 años]:[De este total son hombres de 60 años o mas]])=Table2[[#This Row],[Total de personas asistidas en el periodo entre reportes]],0,1),\"\")","v":""}]
[null,"","","",null,"",null,"",null,"",null,null,{"$f":"IFERROR(VLOOKUP(Table2[[#This Row],[Departamento (Admin 1)]],'P-codes'!$E$2:$F$15,2,FALSE),\"\")","v":""},null,{"$f":"IFERROR(VLOOKUP(Table2[[#This Row],[Municipio (Admin 2)]],'P-codes'!$C$2:$D$267,2,FALSE),\"\")","v":""},null,"",null,"",null,null,null,null,null,null,{"$f":"IF(SUM(Table2[[#This Row],[Total de hogares asistidos en el periodo entre reportes]],Table2[[#This Row],[Total de hogares asistidos en el periodo entre reportes2]:[De este total son hogares desplazados]])<>0,IF(SUM(Table2[[#This Row],[Total de hogares asistidos en el periodo entre reportes2]:[De este total son hogares desplazados]])=Table2[[#This Row],[Total de hogares asistidos en el periodo entre reportes]],0,1),\"\")","v":""},null,null,null,null,null,null,null,{"$f":"IF(SUM(Table2[[#This Row],[Total de personas asistidas en el periodo entre reportes]],Table2[[#This Row],[De este total son niñas de 0 a 18 años]:[De este total son hombres de 60 años o mas]])<>0,IF(SUM(Table2[[#This Row],[De este total son niñas de 0 a 18 años]:[De este total son hombres de 60 años o mas]])=Table2[[#This Row],[Total de personas asistidas en el periodo entre reportes]],0,1),\"\")","v":""}]
[null,"","","",null,"",null,"",null,"",null,null,{"$f":"IFERROR(VLOOKUP(Table2[[#This Row],[Departamento (Admin 1)]],'P-codes'!$E$2:$F$15,2,FALSE),\"\")","v":""},null,{"$f":"IFERROR(VLOOKUP(Table2[[#This Row],[Municipio (Admin 2)]],'P-codes'!$C$2:$D$267,2,FALSE),\"\")","v":""},null,"",null,"",null,null,null,null,null,null,{"$f":"IF(SUM(Table2[[#This Row],[Total de hogares asistidos en el periodo entre reportes]],Table2[[#This Row],[Total de hogares asistidos en el periodo entre reportes2]:[De este total son hogares desplazados]])<>0,IF(SUM(Table2[[#This Row],[Total de hogares asistidos en el periodo entre reportes2]:[De este total son hogares desplazados]])=Table2[[#This Row],[Total de hogares asistidos en el periodo entre reportes]],0,1),\"\")","v":""},null,null,null,null,null,null,null,{"$f":"IF(SUM(Table2[[#This Row],[Total de personas asistidas en el periodo entre reportes]],Table2[[#This Row],[De este total son niñas de 0 a 18 años]:[De este total son hombres de 60 años o mas]])<>0,IF(SUM(Table2[[#This Row],[De este total son niñas de 0 a 18 años]:[De este total son hombres de 60 años o mas]])=Table2[[#This Row],[Total de personas asistidas en el periodo entre reportes]],0,1),\"\")","v":""}]
[null,"","","",null,"",null,"",null,"",null,null,{"$f":"IFERROR(VLOOKUP(Table2[[#This Row],[Departamento (Admin 1)]],'P-codes'!$E$2:$F$15,2,FALSE),\"\")","v":""},null,{"$f":"IFERROR(VLOOKUP(Table2[[#This Row],[Municipio (Admin 2)]],'P-codes'!$C$2:$D$267,2,FALSE),\"\")","v":""},null,"",null,"",null,null,null,null,null,null,{"$f":"IF(SUM(Table2[[#This Row],[Total de hogares asistidos en el periodo entre reportes]],Table2[[#This Row],[Total de hogares asistidos en el periodo entre reportes2]:[De este total son hogares desplazados]])<>0,IF(SUM(Table2[[#This Row],[Total de hogares asistidos en el periodo entre reportes2]:[De este total son hogares desplazados]])=Table2[[#This Row],[Total de hogares asistidos en el periodo entre reportes]],0,1),\"\")","v":""},null,null,null,null,null,null,null,{"$f":"IF(SUM(Table2[[#This Row],[Total de personas asistidas en el periodo entre reportes]],Table2[[#This Row],[De este total son niñas de 0 a 18 años]:[De este total son hombres de 60 años o mas]])<>0,IF(SUM(Table2[[#This Row],[De este total son niñas de 0 a 18 años]:[De este total son hombres de 60 años o mas]])=Table2[[#This Row],[Total de personas asistidas en el periodo entre reportes]],0,1),\"\")","v":""}]
[null,"","","",null,"",null,"",null,"",null,null,{"$f":"IFERROR(VLOOKUP(Table2[[#This Row],[Departamento (Admin 1)]],'P-codes'!$E$2:$F$15,2,FALSE),\"\")","v":""},null,{"$f":"IFERROR(VLOOKUP(Table2[[#This Row],[Municipio (Admin 2)]],'P-codes'!$C$2:$D$267,2,FALSE),\"\")","v":""},null,"",null,"",null,null,null,null,null,null,{"$f":"IF(SUM(Table2[[#This Row],[Total de hogares asistidos en el periodo entre reportes]],Table2[[#This Row],[Total de hogares asistidos en el periodo entre reportes2]:[De este total son hogares desplazados]])<>0,IF(SUM(Table2[[#This Row],[Total de hogares asistidos en el periodo entre reportes2]:[De este total son hogares desplazados]])=Table2[[#This Row],[Total de hogares asistidos en el periodo entre reportes]],0,1),\"\")","v":""},null,null,null,null,null,null,null,{"$f":"IF(SUM(Table2[[#This Row],[Total de personas asistidas en el periodo entre reportes]],Table2[[#This Row],[De este total son niñas de 0 a 18 años]:[De este total son hombres de 60 años o mas]])<>0,IF(SUM(Table2[[#This Row],[De este total son niñas de 0 a 18 años]:[De este total son hombres de 60 años o mas]])=Table2[[#This Row],[Total de personas asistidas en el periodo entre reportes]],0,1),\"\")","v":""}]
[null,"","","",null,"",null,"",null,"",null,null,{"$f":"IFERROR(VLOOKUP(Table2[[#This Row],[Departamento (Admin 1)]],'P-codes'!$E$2:$F$15,2,FALSE),\"\")","v":""},null,{"$f":"IFERROR(VLOOKUP(Table2[[#This Row],[Municipio (Admin 2)]],'P-codes'!$C$2:$D$267,2,FALSE),\"\")","v":""},null,"",null,"",null,null,null,null,null,null,{"$f":"IF(SUM(Table2[[#This Row],[Total de hogares asistidos en el periodo entre reportes]],Table2[[#This Row],[Total de hogares asistidos en el periodo entre reportes2]:[De este total son hogares desplazados]])<>0,IF(SUM(Table2[[#This Row],[Total de hogares asistidos en el periodo entre reportes2]:[De este total son hogares desplazados]])=Table2[[#This Row],[Total de hogares asistidos en el periodo entre reportes]],0,1),\"\")","v":""},null,null,null,null,null,null,null,{"$f":"IF(SUM(Table2[[#This Row],[Total de personas asistidas en el periodo entre reportes]],Table2[[#This Row],[De este total son niñas de 0 a 18 años]:[De este total son hombres de 60 años o mas]])<>0,IF(SUM(Table2[[#This Row],[De este total son niñas de 0 a 18 años]:[De este total son hombres de 60 años o mas]])=Table2[[#This Row],[Total de personas asistidas en el periodo entre reportes]],0,1),\"\")","v":""}]
[null,"","","",null,"",null,"",null,"",null,null,{"$f":"IFERROR(VLOOKUP(Table2[[#This Row],[Departamento (Admin 1)]],'P-codes'!$E$2:$F$15,2,FALSE),\"\")","v":""},null,{"$f":"IFERROR(VLOOKUP(Table2[[#This Row],[Municipio (Admin 2)]],'P-codes'!$C$2:$D$267,2,FALSE),\"\")","v":""},null,"",null,"",null,null,null,null,null,null,{"$f":"IF(SUM(Table2[[#This Row],[Total de hogares asistidos en el periodo entre reportes]],Table2[[#This Row],[Total de hogares asistidos en el periodo entre reportes2]:[De este total son hogares desplazados]])<>0,IF(SUM(Table2[[#This Row],[Total de hogares asistidos en el periodo entre reportes2]:[De este total son hogares desplazados]])=Table2[[#This Row],[Total de hogares asistidos en el periodo entre reportes]],0,1),\"\")","v":""},null,null,null,null,null,null,null,{"$f":"IF(SUM(Table2[[#This Row],[Total de personas asistidas en el periodo entre reportes]],Table2[[#This Row],[De este total son niñas de 0 a 18 años]:[De este total son hombres de 60 años o mas]])<>0,IF(SUM(Table2[[#This Row],[De este total son niñas de 0 a 18 años]:[De este total son hombres de 60 años o mas]])=Table2[[#This Row],[Total de personas asistidas en el periodo entre reportes]],0,1),\"\")","v":""}]
[null,"","","",null,"",null,"",null,"",null,null,{"$f":"IFERROR(VLOOKUP(Table2[[#This Row],[Departamento (Admin 1)]],'P-codes'!$E$2:$F$15,2,FALSE),\"\")","v":""},null,{"$f":"IFERROR(VLOOKUP(Table2[[#This Row],[Municipio (Admin 2)]],'P-codes'!$C$2:$D$267,2,FALSE),\"\")","v":""},null,"",null,"",null,null,null,null,null,null,{"$f":"IF(SUM(Table2[[#This Row],[Total de hogares asistidos en el periodo entre reportes]],Table2[[#This Row],[Total de hogares asistidos en el periodo entre reportes2]:[De este total son hogares desplazados]])<>0,IF(SUM(Table2[[#This Row],[Total de hogares asistidos en el periodo entre reportes2]:[De este total son hogares desplazados]])=Table2[[#This Row],[Total de hogares asistidos en el periodo entre reportes]],0,1),\"\")","v":""},null,null,null,null,null,null,null,{"$f":"IF(SUM(Table2[[#This Row],[Total de personas asistidas en el periodo entre reportes]],Table2[[#This Row],[De este total son niñas de 0 a 18 años]:[De este total son hombres de 60 años o mas]])<>0,IF(SUM(Table2[[#This Row],[De este total son niñas de 0 a 18 años]:[De este total son hombres de 60 años o mas]])=Table2[[#This Row],[Total de personas asistidas en el periodo entre reportes]],0,1),\"\")","v":""}]
[null,{"$f":"IF($A38<>\"\",YEAR($A38),\"\")","v":""},{"$f":"IF($A38<>\"\",TEXT($A38,\"[$-es-SV]mmmm\"),\"\")","v":""},{"$f":"IF($A38<>\"\",DAY($A38),\"\")","v":""},null,{"$f":"IF(E38=\"Otra\",\"Escriba un nombre aquí\",IF(E38<>\"\",\"NA\",\"\"))","v":""},null,{"$f":"IF(G38=\"Otra\",\"Escriba un nombre aquí\",IF(G38<>\"\",\"NA\",\"\"))","v":""},null,{"$f":"IF(I38=\"Otra\",\"Escriba un nombre aquí\",IF(I38<>\"\",\"NA\",\"\"))","v":""},null,null,{"$f":"IFERROR(VLOOKUP(Table2[[#This Row],[Departamento (Admin 1)]],'P-codes'!$E$2:$F$15,2,FALSE),\"\")","v":""},null,{"$f":"IFERROR(VLOOKUP(Table2[[#This Row],[Municipio (Admin 2)]],'P-codes'!$C$2:$D$267,2,FALSE),\"\")","v":""},null,{"$f":"IF(P38=\"Otra\",\"Escriba un nombre aquí\",IF(P38<>\"\",\"NA\",\"\"))","v":""},null,{"$f":"IF(R38=\"Otra\",\"Escriba un nombre aquí\",IF(R38<>\"\",\"NA\",\"\"))","v":""},null,null,null,null,null,null,{"$f":"IF(SUM(Table2[[#This Row],[Total de hogares asistidos en el periodo entre reportes]],Table2[[#This Row],[Total de hogares asistidos en el periodo entre reportes2]:[De este total son hogares desplazados]])<>0,IF(SUM(Table2[[#This Row],[Total de hogares asistidos en el periodo entre reportes2]:[De este total son hogares desplazados]])=Table2[[#This Row],[Total de hogares asistidos en el periodo entre reportes]],0,1),\"\")","v":""},null,null,null,null,null,null,null,{"$f":"IF(SUM(Table2[[#This Row],[Total de personas asistidas en el periodo entre reportes]],Table2[[#This Row],[De este total son niñas de 0 a 18 años]:[De este total son hombres de 60 años o mas]])<>0,IF(SUM(Table2[[#This Row],[De este total son niñas de 0 a 18 años]:[De este total son hombres de 60 años o mas]])=Table2[[#This Row],[Total de personas asistidas en el periodo entre reportes]],0,1),\"\")","v":""}]
[null,"","","",null,"",null,"",null,"",null,null,{"$f":"IFERROR(VLOOKUP(Table2[[#This Row],[Departamento (Admin 1)]],'P-codes'!$E$2:$F$15,2,FALSE),\"\")","v":""},null,{"$f":"IFERROR(VLOOKUP(Table2[[#This Row],[Municipio (Admin 2)]],'P-codes'!$C$2:$D$267,2,FALSE),\"\")","v":""},null,"",null,"",null,null,null,null,null,null,{"$f":"IF(SUM(Table2[[#This Row],[Total de hogares asistidos en el periodo entre reportes]],Table2[[#This Row],[Total de hogares asistidos en el periodo entre reportes2]:[De este total son hogares desplazados]])<>0,IF(SUM(Table2[[#This Row],[Total de hogares asistidos en el periodo entre reportes2]:[De este total son hogares desplazados]])=Table2[[#This Row],[Total de hogares asistidos en el periodo entre reportes]],0,1),\"\")","v":""},null,null,null,null,null,null,null,{"$f":"IF(SUM(Table2[[#This Row],[Total de personas asistidas en el periodo entre reportes]],Table2[[#This Row],[De este total son niñas de 0 a 18 años]:[De este total son hombres de 60 años o mas]])<>0,IF(SUM(Table2[[#This Row],[De este total son niñas de 0 a 18 años]:[De este total son hombres de 60 años o mas]])=Table2[[#This Row],[Total de personas asistidas en el periodo entre reportes]],0,1),\"\")","v":""}]
[null,"","","",null,"",null,"",null,"",null,null,{"$f":"IFERROR(VLOOKUP(Table2[[#This Row],[Departamento (Admin 1)]],'P-codes'!$E$2:$F$15,2,FALSE),\"\")","v":""},null,{"$f":"IFERROR(VLOOKUP(Table2[[#This Row],[Municipio (Admin 2)]],'P-codes'!$C$2:$D$267,2,FALSE),\"\")","v":""},null,"",null,"",null,null,null,null,null,null,{"$f":"IF(SUM(Table2[[#This Row],[Total de hogares asistidos en el periodo entre reportes]],Table2[[#This Row],[Total de hogares asistidos en el periodo entre reportes2]:[De este total son hogares desplazados]])<>0,IF(SUM(Table2[[#This Row],[Total de hogares asistidos en el periodo entre reportes2]:[De este total son hogares desplazados]])=Table2[[#This Row],[Total de hogares asistidos en el periodo entre reportes]],0,1),\"\")","v":""},null,null,null,null,null,null,null,{"$f":"IF(SUM(Table2[[#This Row],[Total de personas asistidas en el periodo entre reportes]],Table2[[#This Row],[De este total son niñas de 0 a 18 años]:[De este total son hombres de 60 años o mas]])<>0,IF(SUM(Table2[[#This Row],[De este total son niñas de 0 a 18 años]:[De este total son hombres de 60 años o mas]])=Table2[[#This Row],[Total de personas asistidas en el periodo entre reportes]],0,1),\"\")","v":""}]
[null,"","","",null,"",null,"",null,"",null,null,{"$f":"IFERROR(VLOOKUP(Table2[[#This Row],[Departamento (Admin 1)]],'P-codes'!$E$2:$F$15,2,FALSE),\"\")","v":""},null,{"$f":"IFERROR(VLOOKUP(Table2[[#This Row],[Municipio (Admin 2)]],'P-codes'!$C$2:$D$267,2,FALSE),\"\")","v":""},null,"",null,"",null,null,null,null,null,null,{"$f":"IF(SUM(Table2[[#This Row],[Total de hogares asistidos en el periodo entre reportes]],Table2[[#This Row],[Total de hogares asistidos en el periodo entre reportes2]:[De este total son hogares desplazados]])<>0,IF(SUM(Table2[[#This Row],[Total de hogares asistidos en el periodo entre reportes2]:[De este total son hogares desplazados]])=Table2[[#This Row],[Total de hogares asistidos en el periodo entre reportes]],0,1),\"\")","v":""},null,null,null,null,null,null,null,{"$f":"IF(SUM(Table2[[#This Row],[Total de personas asistidas en el periodo entre reportes]],Table2[[#This Row],[De este total son niñas de 0 a 18 años]:[De este total son hombres de 60 años o mas]])<>0,IF(SUM(Table2[[#This Row],[De este total son niñas de 0 a 18 años]:[De este total son hombres de 60 años o mas]])=Table2[[#This Row],[Total de personas asistidas en el periodo entre reportes]],0,1),\"\")","v":""}]
[null,"","","",null,"",null,"",null,"",null,null,{"$f":"IFERROR(VLOOKUP(Table2[[#This Row],[Departamento (Admin 1)]],'P-codes'!$E$2:$F$15,2,FALSE),\"\")","v":""},null,{"$f":"IFERROR(VLOOKUP(Table2[[#This Row],[Municipio (Admin 2)]],'P-codes'!$C$2:$D$267,2,FALSE),\"\")","v":""},null,"",null,"",null,null,null,null,null,null,{"$f":"IF(SUM(Table2[[#This Row],[Total de hogares asistidos en el periodo entre reportes]],Table2[[#This Row],[Total de hogares asistidos en el periodo entre reportes2]:[De este total son hogares desplazados]])<>0,IF(SUM(Table2[[#This Row],[Total de hogares asistidos en el periodo entre reportes2]:[De este total son hogares desplazados]])=Table2[[#This Row],[Total de hogares asistidos en el periodo entre reportes]],0,1),\"\")","v":""},null,null,null,null,null,null,null,{"$f":"IF(SUM(Table2[[#This Row],[Total de personas asistidas en el periodo entre reportes]],Table2[[#This Row],[De este total son niñas de 0 a 18 años]:[De este total son hombres de 60 años o mas]])<>0,IF(SUM(Table2[[#This Row],[De este total son niñas de 0 a 18 años]:[De este total son hombres de 60 años o mas]])=Table2[[#This Row],[Total de personas asistidas en el periodo entre reportes]],0,1),\"\")","v":""}]
[null,"","","",null,"",null,"",null,"",null,null,{"$f":"IFERROR(VLOOKUP(Table2[[#This Row],[Departamento (Admin 1)]],'P-codes'!$E$2:$F$15,2,FALSE),\"\")","v":""},null,{"$f":"IFERROR(VLOOKUP(Table2[[#This Row],[Municipio (Admin 2)]],'P-codes'!$C$2:$D$267,2,FALSE),\"\")","v":""},null,"",null,"",null,null,null,null,null,null,{"$f":"IF(SUM(Table2[[#This Row],[Total de hogares asistidos en el periodo entre reportes]],Table2[[#This Row],[Total de hogares asistidos en el periodo entre reportes2]:[De este total son hogares desplazados]])<>0,IF(SUM(Table2[[#This Row],[Total de hogares asistidos en el periodo entre reportes2]:[De este total son hogares desplazados]])=Table2[[#This Row],[Total de hogares asistidos en el periodo entre reportes]],0,1),\"\")","v":""},null,null,null,null,null,null,null,{"$f":"IF(SUM(Table2[[#This Row],[Total de personas asistidas en el periodo entre reportes]],Table2[[#This Row],[De este total son niñas de 0 a 18 años]:[De este total son hombres de 60 años o mas]])<>0,IF(SUM(Table2[[#This Row],[De este total son niñas de 0 a 18 años]:[De este total son hombres de 60 años o mas]])=Table2[[#This Row],[Total de personas asistidas en el periodo entre reportes]],0,1),\"\")","v":""}]
[null,"","","",null,"",null,"",null,"",null,null,{"$f":"IFERROR(VLOOKUP(Table2[[#This Row],[Departamento (Admin 1)]],'P-codes'!$E$2:$F$15,2,FALSE),\"\")","v":""},null,{"$f":"IFERROR(VLOOKUP(Table2[[#This Row],[Municipio (Admin 2)]],'P-codes'!$C$2:$D$267,2,FALSE),\"\")","v":""},null,"",null,"",null,null,null,null,null,null,{"$f":"IF(SUM(Table2[[#This Row],[Total de hogares asistidos en el periodo entre reportes]],Table2[[#This Row],[Total de hogares asistidos en el periodo entre reportes2]:[De este total son hogares desplazados]])<>0,IF(SUM(Table2[[#This Row],[Total de hogares asistidos en el periodo entre reportes2]:[De este total son hogares desplazados]])=Table2[[#This Row],[Total de hogares asistidos en el periodo entre reportes]],0,1),\"\")","v":""},null,null,null,null,null,null,null,{"$f":"IF(SUM(Table2[[#This Row],[Total de personas asistidas en el periodo entre reportes]],Table2[[#This Row],[De este total son niñas de 0 a 18 años]:[De este total son hombres de 60 años o mas]])<>0,IF(SUM(Table2[[#This Row],[De este total son niñas de 0 a 18 años]:[De este total son hombres de 60 años o mas]])=Table2[[#This Row],[Total de personas asistidas en el periodo entre reportes]],0,1),\"\")","v":""}]
[null,"","","",null,"",null,"",null,"",null,null,{"$f":"IFERROR(VLOOKUP(Table2[[#This Row],[Departamento (Admin 1)]],'P-codes'!$E$2:$F$15,2,FALSE),\"\")","v":""},null,{"$f":"IFERROR(VLOOKUP(Table2[[#This Row],[Municipio (Admin 2)]],'P-codes'!$C$2:$D$267,2,FALSE),\"\")","v":""},null,"",null,"",null,null,null,null,null,null,{"$f":"IF(SUM(Table2[[#This Row],[Total de hogares asistidos en el periodo entre reportes]],Table2[[#This Row],[Total de hogares asistidos en el periodo entre reportes2]:[De este total son hogares desplazados]])<>0,IF(SUM(Table2[[#This Row],[Total de hogares asistidos en el periodo entre reportes2]:[De este total son hogares desplazados]])=Table2[[#This Row],[Total de hogares asistidos en el periodo entre reportes]],0,1),\"\")","v":""},null,null,null,null,null,null,null,{"$f":"IF(SUM(Table2[[#This Row],[Total de personas asistidas en el periodo entre reportes]],Table2[[#This Row],[De este total son niñas de 0 a 18 años]:[De este total son hombres de 60 años o mas]])<>0,IF(SUM(Table2[[#This Row],[De este total son niñas de 0 a 18 años]:[De este total son hombres de 60 años o mas]])=Table2[[#This Row],[Total de personas asistidas en el periodo entre reportes]],0,1),\"\")","v":""}]
[null,"","","",null,"",null,"",null,"",null,null,{"$f":"IFERROR(VLOOKUP(Table2[[#This Row],[Departamento (Admin 1)]],'P-codes'!$E$2:$F$15,2,FALSE),\"\")","v":""},null,{"$f":"IFERROR(VLOOKUP(Table2[[#This Row],[Municipio (Admin 2)]],'P-codes'!$C$2:$D$267,2,FALSE),\"\")","v":""},null,"",null,"",null,null,null,null,null,null,{"$f":"IF(SUM(Table2[[#This Row],[Total de hogares asistidos en el periodo entre reportes]],Table2[[#This Row],[Total de hogares asistidos en el periodo entre reportes2]:[De este total son hogares desplazados]])<>0,IF(SUM(Table2[[#This Row],[Total de hogares asistidos en el periodo entre reportes2]:[De este total son hogares desplazados]])=Table2[[#This Row],[Total de hogares asistidos en el periodo entre reportes]],0,1),\"\")","v":""},null,null,null,null,null,null,null,{"$f":"IF(SUM(Table2[[#This Row],[Total de personas asistidas en el periodo entre reportes]],Table2[[#This Row],[De este total son niñas de 0 a 18 años]:[De este total son hombres de 60 años o mas]])<>0,IF(SUM(Table2[[#This Row],[De este total son niñas de 0 a 18 años]:[De este total son hombres de 60 años o mas]])=Table2[[#This Row],[Total de personas asistidas en el periodo entre reportes]],0,1),\"\")","v":""}]
[null,"","","",null,"",null,"",null,"",null,null,{"$f":"IFERROR(VLOOKUP(Table2[[#This Row],[Departamento (Admin 1)]],'P-codes'!$E$2:$F$15,2,FALSE),\"\")","v":""},null,{"$f":"IFERROR(VLOOKUP(Table2[[#This Row],[Municipio (Admin 2)]],'P-codes'!$C$2:$D$267,2,FALSE),\"\")","v":""},null,"",null,"",null,null,null,null,null,null,{"$f":"IF(SUM(Table2[[#This Row],[Total de hogares asistidos en el periodo entre reportes]],Table2[[#This Row],[Total de hogares asistidos en el periodo entre reportes2]:[De este total son hogares desplazados]])<>0,IF(SUM(Table2[[#This Row],[Total de hogares asistidos en el periodo entre reportes2]:[De este total son hogares desplazados]])=Table2[[#This Row],[Total de hogares asistidos en el periodo entre reportes]],0,1),\"\")","v":""},null,null,null,null,null,null,null,{"$f":"IF(SUM(Table2[[#This Row],[Total de personas asistidas en el periodo entre reportes]],Table2[[#This Row],[De este total son niñas de 0 a 18 años]:[De este total son hombres de 60 años o mas]])<>0,IF(SUM(Table2[[#This Row],[De este total son niñas de 0 a 18 años]:[De este total son hombres de 60 años o mas]])=Table2[[#This Row],[Total de personas asistidas en el periodo entre reportes]],0,1),\"\")","v":""}]
[null,"","","",null,"",null,"",null,"",null,null,{"$f":"IFERROR(VLOOKUP(Table2[[#This Row],[Departamento (Admin 1)]],'P-codes'!$E$2:$F$15,2,FALSE),\"\")","v":""},null,{"$f":"IFERROR(VLOOKUP(Table2[[#This Row],[Municipio (Admin 2)]],'P-codes'!$C$2:$D$267,2,FALSE),\"\")","v":""},null,"",null,"",null,null,null,null,null,null,{"$f":"IF(SUM(Table2[[#This Row],[Total de hogares asistidos en el periodo entre reportes]],Table2[[#This Row],[Total de hogares asistidos en el periodo entre reportes2]:[De este total son hogares desplazados]])<>0,IF(SUM(Table2[[#This Row],[Total de hogares asistidos en el periodo entre reportes2]:[De este total son hogares desplazados]])=Table2[[#This Row],[Total de hogares asistidos en el periodo entre reportes]],0,1),\"\")","v":""},null,null,null,null,null,null,null,{"$f":"IF(SUM(Table2[[#This Row],[Total de personas asistidas en el periodo entre reportes]],Table2[[#This Row],[De este total son niñas de 0 a 18 años]:[De este total son hombres de 60 años o mas]])<>0,IF(SUM(Table2[[#This Row],[De este total son niñas de 0 a 18 años]:[De este total son hombres de 60 años o mas]])=Table2[[#This Row],[Total de personas asistidas en el periodo entre reportes]],0,1),\"\")","v":""}]
[null,"","","",null,"",null,"",null,"",null,null,{"$f":"IFERROR(VLOOKUP(Table2[[#This Row],[Departamento (Admin 1)]],'P-codes'!$E$2:$F$15,2,FALSE),\"\")","v":""},null,{"$f":"IFERROR(VLOOKUP(Table2[[#This Row],[Municipio (Admin 2)]],'P-codes'!$C$2:$D$267,2,FALSE),\"\")","v":""},null,"",null,"",null,null,null,null,null,null,{"$f":"IF(SUM(Table2[[#This Row],[Total de hogares asistidos en el periodo entre reportes]],Table2[[#This Row],[Total de hogares asistidos en el periodo entre reportes2]:[De este total son hogares desplazados]])<>0,IF(SUM(Table2[[#This Row],[Total de hogares asistidos en el periodo entre reportes2]:[De este total son hogares desplazados]])=Table2[[#This Row],[Total de hogares asistidos en el periodo entre reportes]],0,1),\"\")","v":""},null,null,null,null,null,null,null,{"$f":"IF(SUM(Table2[[#This Row],[Total de personas asistidas en el periodo entre reportes]],Table2[[#This Row],[De este total son niñas de 0 a 18 años]:[De este total son hombres de 60 años o mas]])<>0,IF(SUM(Table2[[#This Row],[De este total son niñas de 0 a 18 años]:[De este total son hombres de 60 años o mas]])=Table2[[#This Row],[Total de personas asistidas en el periodo entre reportes]],0,1),\"\")","v":""}]
[null,"","","",null,"",null,"",null,"",null,null,{"$f":"IFERROR(VLOOKUP(Table2[[#This Row],[Departamento (Admin 1)]],'P-codes'!$E$2:$F$15,2,FALSE),\"\")","v":""},null,{"$f":"IFERROR(VLOOKUP(Table2[[#This Row],[Municipio (Admin 2)]],'P-codes'!$C$2:$D$267,2,FALSE),\"\")","v":""},null,"",null,"",null,null,null,null,null,null,{"$f":"IF(SUM(Table2[[#This Row],[Total de hogares asistidos en el periodo entre reportes]],Table2[[#This Row],[Total de hogares asistidos en el periodo entre reportes2]:[De este total son hogares desplazados]])<>0,IF(SUM(Table2[[#This Row],[Total de hogares asistidos en el periodo entre reportes2]:[De este total son hogares desplazados]])=Table2[[#This Row],[Total de hogares asistidos en el periodo entre reportes]],0,1),\"\")","v":""},null,null,null,null,null,null,null,{"$f":"IF(SUM(Table2[[#This Row],[Total de personas asistidas en el periodo entre reportes]],Table2[[#This Row],[De este total son niñas de 0 a 18 años]:[De este total son hombres de 60 años o mas]])<>0,IF(SUM(Table2[[#This Row],[De este total son niñas de 0 a 18 años]:[De este total son hombres de 60 años o mas]])=Table2[[#This Row],[Total de personas asistidas en el periodo entre reportes]],0,1),\"\")","v":""}]
[null,"","","",null,"",null,"",null,"",null,null,{"$f":"IFERROR(VLOOKUP(Table2[[#This Row],[Departamento (Admin 1)]],'P-codes'!$E$2:$F$15,2,FALSE),\"\")","v":""},null,{"$f":"IFERROR(VLOOKUP(Table2[[#This Row],[Municipio (Admin 2)]],'P-codes'!$C$2:$D$267,2,FALSE),\"\")","v":""},null,"",null,"",null,null,null,null,null,null,{"$f":"IF(SUM(Table2[[#This Row],[Total de hogares asistidos en el periodo entre reportes]],Table2[[#This Row],[Total de hogares asistidos en el periodo entre reportes2]:[De este total son hogares desplazados]])<>0,IF(SUM(Table2[[#This Row],[Total de hogares asistidos en el periodo entre reportes2]:[De este total son hogares desplazados]])=Table2[[#This Row],[Total de hogares asistidos en el periodo entre reportes]],0,1),\"\")","v":""},null,null,null,null,null,null,null,{"$f":"IF(SUM(Table2[[#This Row],[Total de personas asistidas en el periodo entre reportes]],Table2[[#This Row],[De este total son niñas de 0 a 18 años]:[De este total son hombres de 60 años o mas]])<>0,IF(SUM(Table2[[#This Row],[De este total son niñas de 0 a 18 años]:[De este total son hombres de 60 años o mas]])=Table2[[#This Row],[Total de personas asistidas en el periodo entre reportes]],0,1),\"\")","v":""}]
[null,"","","",null,"",null,"",null,"",null,null,{"$f":"IFERROR(VLOOKUP(Table2[[#This Row],[Departamento (Admin 1)]],'P-codes'!$E$2:$F$15,2,FALSE),\"\")","v":""},null,{"$f":"IFERROR(VLOOKUP(Table2[[#This Row],[Municipio (Admin 2)]],'P-codes'!$C$2:$D$267,2,FALSE),\"\")","v":""},null,"",null,"",null,null,null,null,null,null,{"$f":"IF(SUM(Table2[[#This Row],[Total de hogares asistidos en el periodo entre reportes]],Table2[[#This Row],[Total de hogares asistidos en el periodo entre reportes2]:[De este total son hogares desplazados]])<>0,IF(SUM(Table2[[#This Row],[Total de hogares asistidos en el periodo entre reportes2]:[De este total son hogares desplazados]])=Table2[[#This Row],[Total de hogares asistidos en el periodo entre reportes]],0,1),\"\")","v":""},null,null,null,null,null,null,null,{"$f":"IF(SUM(Table2[[#This Row],[Total de personas asistidas en el periodo entre reportes]],Table2[[#This Row],[De este total son niñas de 0 a 18 años]:[De este total son hombres de 60 años o mas]])<>0,IF(SUM(Table2[[#This Row],[De este total son niñas de 0 a 18 años]:[De este total son hombres de 60 años o mas]])=Table2[[#This Row],[Total de personas asistidas en el periodo entre reportes]],0,1),\"\")","v":""}]
[null,"","","",null,"",null,"",null,"",null,null,{"$f":"IFERROR(VLOOKUP(Table2[[#This Row],[Departamento (Admin 1)]],'P-codes'!$E$2:$F$15,2,FALSE),\"\")","v":""},null,{"$f":"IFERROR(VLOOKUP(Table2[[#This Row],[Municipio (Admin 2)]],'P-codes'!$C$2:$D$267,2,FALSE),\"\")","v":""},null,"",null,"",null,null,null,null,null,null,{"$f":"IF(SUM(Table2[[#This Row],[Total de hogares asistidos en el periodo entre reportes]],Table2[[#This Row],[Total de hogares asistidos en el periodo entre reportes2]:[De este total son hogares desplazados]])<>0,IF(SUM(Table2[[#This Row],[Total de hogares asistidos en el periodo entre reportes2]:[De este total son hogares desplazados]])=Table2[[#This Row],[Total de hogares asistidos en el periodo entre reportes]],0,1),\"\")","v":""},null,null,null,null,null,null,null,{"$f":"IF(SUM(Table2[[#This Row],[Total de personas asistidas en el periodo entre reportes]],Table2[[#This Row],[De este total son niñas de 0 a 18 años]:[De este total son hombres de 60 años o mas]])<>0,IF(SUM(Table2[[#This Row],[De este total son niñas de 0 a 18 años]:[De este total son hombres de 60 años o mas]])=Table2[[#This Row],[Total de personas asistidas en el periodo entre reportes]],0,1),\"\")","v":""}]
[null,"","","",null,"",null,"",null,"",null,null,{"$f":"IFERROR(VLOOKUP(Table2[[#This Row],[Departamento (Admin 1)]],'P-codes'!$E$2:$F$15,2,FALSE),\"\")","v":""},null,{"$f":"IFERROR(VLOOKUP(Table2[[#This Row],[Municipio (Admin 2)]],'P-codes'!$C$2:$D$267,2,FALSE),\"\")","v":""},null,"",null,"",null,null,null,null,null,null,{"$f":"IF(SUM(Table2[[#This Row],[Total de hogares asistidos en el periodo entre reportes]],Table2[[#This Row],[Total de hogares asistidos en el periodo entre reportes2]:[De este total son hogares desplazados]])<>0,IF(SUM(Table2[[#This Row],[Total de hogares asistidos en el periodo entre reportes2]:[De este total son hogares desplazados]])=Table2[[#This Row],[Total de hogares asistidos en el periodo entre reportes]],0,1),\"\")","v":""},null,null,null,null,null,null,null,{"$f":"IF(SUM(Table2[[#This Row],[Total de personas asistidas en el periodo entre reportes]],Table2[[#This Row],[De este total son niñas de 0 a 18 años]:[De este total son hombres de 60 años o mas]])<>0,IF(SUM(Table2[[#This Row],[De este total son niñas de 0 a 18 años]:[De este total son hombres de 60 años o mas]])=Table2[[#This Row],[Total de personas asistidas en el periodo entre reportes]],0,1),\"\")","v":""}]
[null,"","","",null,"",null,"",null,"",null,null,{"$f":"IFERROR(VLOOKUP(Table2[[#This Row],[Departamento (Admin 1)]],'P-codes'!$E$2:$F$15,2,FALSE),\"\")","v":""},null,{"$f":"IFERROR(VLOOKUP(Table2[[#This Row],[Municipio (Admin 2)]],'P-codes'!$C$2:$D$267,2,FALSE),\"\")","v":""},null,"",null,"",null,null,null,null,null,null,{"$f":"IF(SUM(Table2[[#This Row],[Total de hogares asistidos en el periodo entre reportes]],Table2[[#This Row],[Total de hogares asistidos en el periodo entre reportes2]:[De este total son hogares desplazados]])<>0,IF(SUM(Table2[[#This Row],[Total de hogares asistidos en el periodo entre reportes2]:[De este total son hogares desplazados]])=Table2[[#This Row],[Total de hogares asistidos en el periodo entre reportes]],0,1),\"\")","v":""},null,null,null,null,null,null,null,{"$f":"IF(SUM(Table2[[#This Row],[Total de personas asistidas en el periodo entre reportes]],Table2[[#This Row],[De este total son niñas de 0 a 18 años]:[De este total son hombres de 60 años o mas]])<>0,IF(SUM(Table2[[#This Row],[De este total son niñas de 0 a 18 años]:[De este total son hombres de 60 años o mas]])=Table2[[#This Row],[Total de personas asistidas en el periodo entre reportes]],0,1),\"\")","v":""}]
[null,"","","",null,"",null,"",null,"",null,null,{"$f":"IFERROR(VLOOKUP(Table2[[#This Row],[Departamento (Admin 1)]],'P-codes'!$E$2:$F$15,2,FALSE),\"\")","v":""},null,{"$f":"IFERROR(VLOOKUP(Table2[[#This Row],[Municipio (Admin 2)]],'P-codes'!$C$2:$D$267,2,FALSE),\"\")","v":""},null,"",null,"",null,null,null,null,null,null,{"$f":"IF(SUM(Table2[[#This Row],[Total de hogares asistidos en el periodo entre reportes]],Table2[[#This Row],[Total de hogares asistidos en el periodo entre reportes2]:[De este total son hogares desplazados]])<>0,IF(SUM(Table2[[#This Row],[Total de hogares asistidos en el periodo entre reportes2]:[De este total son hogares desplazados]])=Table2[[#This Row],[Total de hogares asistidos en el periodo entre reportes]],0,1),\"\")","v":""},null,null,null,null,null,null,null,{"$f":"IF(SUM(Table2[[#This Row],[Total de personas asistidas en el periodo entre reportes]],Table2[[#This Row],[De este total son niñas de 0 a 18 años]:[De este total son hombres de 60 años o mas]])<>0,IF(SUM(Table2[[#This Row],[De este total son niñas de 0 a 18 años]:[De este total son hombres de 60 años o mas]])=Table2[[#This Row],[Total de personas asistidas en el periodo entre reportes]],0,1),\"\")","v":""}]
[null,"","","",null,"",null,"",null,"",null,null,{"$f":"IFERROR(VLOOKUP(Table2[[#This Row],[Departamento (Admin 1)]],'P-codes'!$E$2:$F$15,2,FALSE),\"\")","v":""},null,{"$f":"IFERROR(VLOOKUP(Table2[[#This Row],[Municipio (Admin 2)]],'P-codes'!$C$2:$D$267,2,FALSE),\"\")","v":""},null,"",null,"",null,null,null,null,null,null,{"$f":"IF(SUM(Table2[[#This Row],[Total de hogares asistidos en el periodo entre reportes]],Table2[[#This Row],[Total de hogares asistidos en el periodo entre reportes2]:[De este total son hogares desplazados]])<>0,IF(SUM(Table2[[#This Row],[Total de hogares asistidos en el periodo entre reportes2]:[De este total son hogares desplazados]])=Table2[[#This Row],[Total de hogares asistidos en el periodo entre reportes]],0,1),\"\")","v":""},null,null,null,null,null,null,null,{"$f":"IF(SUM(Table2[[#This Row],[Total de personas asistidas en el periodo entre reportes]],Table2[[#This Row],[De este total son niñas de 0 a 18 años]:[De este total son hombres de 60 años o mas]])<>0,IF(SUM(Table2[[#This Row],[De este total son niñas de 0 a 18 años]:[De este total son hombres de 60 años o mas]])=Table2[[#This Row],[Total de personas asistidas en el periodo entre reportes]],0,1),\"\")","v":""}]
[null,"","","",null,"",null,"",null,"",null,null,{"$f":"IFERROR(VLOOKUP(Table2[[#This Row],[Departamento (Admin 1)]],'P-codes'!$E$2:$F$15,2,FALSE),\"\")","v":""},null,{"$f":"IFERROR(VLOOKUP(Table2[[#This Row],[Municipio (Admin 2)]],'P-codes'!$C$2:$D$267,2,FALSE),\"\")","v":""},null,"",null,"",null,null,null,null,null,null,{"$f":"IF(SUM(Table2[[#This Row],[Total de hogares asistidos en el periodo entre reportes]],Table2[[#This Row],[Total de hogares asistidos en el periodo entre reportes2]:[De este total son hogares desplazados]])<>0,IF(SUM(Table2[[#This Row],[Total de hogares asistidos en el periodo entre reportes2]:[De este total son hogares desplazados]])=Table2[[#This Row],[Total de hogares asistidos en el periodo entre reportes]],0,1),\"\")","v":""},null,null,null,null,null,null,null,{"$f":"IF(SUM(Table2[[#This Row],[Total de personas asistidas en el periodo entre reportes]],Table2[[#This Row],[De este total son niñas de 0 a 18 años]:[De este total son hombres de 60 años o mas]])<>0,IF(SUM(Table2[[#This Row],[De este total son niñas de 0 a 18 años]:[De este total son hombres de 60 años o mas]])=Table2[[#This Row],[Total de personas asistidas en el periodo entre reportes]],0,1),\"\")","v":""}]
[null,"","","",null,"",null,"",null,"",null,null,{"$f":"IFERROR(VLOOKUP(Table2[[#This Row],[Departamento (Admin 1)]],'P-codes'!$E$2:$F$15,2,FALSE),\"\")","v":""},null,{"$f":"IFERROR(VLOOKUP(Table2[[#This Row],[Municipio (Admin 2)]],'P-codes'!$C$2:$D$267,2,FALSE),\"\")","v":""},null,"",null,"",null,null,null,null,null,null,{"$f":"IF(SUM(Table2[[#This Row],[Total de hogares asistidos en el periodo entre reportes]],Table2[[#This Row],[Total de hogares asistidos en el periodo entre reportes2]:[De este total son hogares desplazados]])<>0,IF(SUM(Table2[[#This Row],[Total de hogares asistidos en el periodo entre reportes2]:[De este total son hogares desplazados]])=Table2[[#This Row],[Total de hogares asistidos en el periodo entre reportes]],0,1),\"\")","v":""},null,null,null,null,null,null,null,{"$f":"IF(SUM(Table2[[#This Row],[Total de personas asistidas en el periodo entre reportes]],Table2[[#This Row],[De este total son niñas de 0 a 18 años]:[De este total son hombres de 60 años o mas]])<>0,IF(SUM(Table2[[#This Row],[De este total son niñas de 0 a 18 años]:[De este total son hombres de 60 años o mas]])=Table2[[#This Row],[Total de personas asistidas en el periodo entre reportes]],0,1),\"\")","v":""}]
[null,"","","",null,"",null,"",null,"",null,null,{"$f":"IFERROR(VLOOKUP(Table2[[#This Row],[Departamento (Admin 1)]],'P-codes'!$E$2:$F$15,2,FALSE),\"\")","v":""},null,{"$f":"IFERROR(VLOOKUP(Table2[[#This Row],[Municipio (Admin 2)]],'P-codes'!$C$2:$D$267,2,FALSE),\"\")","v":""},null,"",null,"",null,null,null,null,null,null,{"$f":"IF(SUM(Table2[[#This Row],[Total de hogares asistidos en el periodo entre reportes]],Table2[[#This Row],[Total de hogares asistidos en el periodo entre reportes2]:[De este total son hogares desplazados]])<>0,IF(SUM(Table2[[#This Row],[Total de hogares asistidos en el periodo entre reportes2]:[De este total son hogares desplazados]])=Table2[[#This Row],[Total de hogares asistidos en el periodo entre reportes]],0,1),\"\")","v":""},null,null,null,null,null,null,null,{"$f":"IF(SUM(Table2[[#This Row],[Total de personas asistidas en el periodo entre reportes]],Table2[[#This Row],[De este total son niñas de 0 a 18 años]:[De este total son hombres de 60 años o mas]])<>0,IF(SUM(Table2[[#This Row],[De este total son niñas de 0 a 18 años]:[De este total son hombres de 60 años o mas]])=Table2[[#This Row],[Total de personas asistidas en el periodo entre reportes]],0,1),\"\")","v":""}]
[null,"","","",null,"",null,"",null,"",null,null,{"$f":"IFERROR(VLOOKUP(Table2[[#This Row],[Departamento (Admin 1)]],'P-codes'!$E$2:$F$15,2,FALSE),\"\")","v":""},null,{"$f":"IFERROR(VLOOKUP(Table2[[#This Row],[Municipio (Admin 2)]],'P-codes'!$C$2:$D$267,2,FALSE),\"\")","v":""},null,"",null,"",null,null,null,null,null,null,{"$f":"IF(SUM(Table2[[#This Row],[Total de hogares asistidos en el periodo entre reportes]],Table2[[#This Row],[Total de hogares asistidos en el periodo entre reportes2]:[De este total son hogares desplazados]])<>0,IF(SUM(Table2[[#This Row],[Total de hogares asistidos en el periodo entre reportes2]:[De este total son hogares desplazados]])=Table2[[#This Row],[Total de hogares asistidos en el periodo entre reportes]],0,1),\"\")","v":""},null,null,null,null,null,null,null,{"$f":"IF(SUM(Table2[[#This Row],[Total de personas asistidas en el periodo entre reportes]],Table2[[#This Row],[De este total son niñas de 0 a 18 años]:[De este total son hombres de 60 años o mas]])<>0,IF(SUM(Table2[[#This Row],[De este total son niñas de 0 a 18 años]:[De este total son hombres de 60 años o mas]])=Table2[[#This Row],[Total de personas asistidas en el periodo entre reportes]],0,1),\"\")","v":""}]
[null,"","","",null,"",null,"",null,"",null,null,{"$f":"IFERROR(VLOOKUP(Table2[[#This Row],[Departamento (Admin 1)]],'P-codes'!$E$2:$F$15,2,FALSE),\"\")","v":""},null,{"$f":"IFERROR(VLOOKUP(Table2[[#This Row],[Municipio (Admin 2)]],'P-codes'!$C$2:$D$267,2,FALSE),\"\")","v":""},null,"",null,"",null,null,null,null,null,null,{"$f":"IF(SUM(Table2[[#This Row],[Total de hogares asistidos en el periodo entre reportes]],Table2[[#This Row],[Total de hogares asistidos en el periodo entre reportes2]:[De este total son hogares desplazados]])<>0,IF(SUM(Table2[[#This Row],[Total de hogares asistidos en el periodo entre reportes2]:[De este total son hogares desplazados]])=Table2[[#This Row],[Total de hogares asistidos en el periodo entre reportes]],0,1),\"\")","v":""},null,null,null,null,null,null,null,{"$f":"IF(SUM(Table2[[#This Row],[Total de personas asistidas en el periodo entre reportes]],Table2[[#This Row],[De este total son niñas de 0 a 18 años]:[De este total son hombres de 60 años o mas]])<>0,IF(SUM(Table2[[#This Row],[De este total son niñas de 0 a 18 años]:[De este total son hombres de 60 años o mas]])=Table2[[#This Row],[Total de personas asistidas en el periodo entre reportes]],0,1),\"\")","v":""}]
[null,"","","",null,"",null,"",null,"",null,null,{"$f":"IFERROR(VLOOKUP(Table2[[#This Row],[Departamento (Admin 1)]],'P-codes'!$E$2:$F$15,2,FALSE),\"\")","v":""},null,{"$f":"IFERROR(VLOOKUP(Table2[[#This Row],[Municipio (Admin 2)]],'P-codes'!$C$2:$D$267,2,FALSE),\"\")","v":""},null,"",null,"",null,null,null,null,null,null,{"$f":"IF(SUM(Table2[[#This Row],[Total de hogares asistidos en el periodo entre reportes]],Table2[[#This Row],[Total de hogares asistidos en el periodo entre reportes2]:[De este total son hogares desplazados]])<>0,IF(SUM(Table2[[#This Row],[Total de hogares asistidos en el periodo entre reportes2]:[De este total son hogares desplazados]])=Table2[[#This Row],[Total de hogares asistidos en el periodo entre reportes]],0,1),\"\")","v":""},null,null,null,null,null,null,null,{"$f":"IF(SUM(Table2[[#This Row],[Total de personas asistidas en el periodo entre reportes]],Table2[[#This Row],[De este total son niñas de 0 a 18 años]:[De este total son hombres de 60 años o mas]])<>0,IF(SUM(Table2[[#This Row],[De este total son niñas de 0 a 18 años]:[De este total son hombres de 60 años o mas]])=Table2[[#This Row],[Total de personas asistidas en el periodo entre reportes]],0,1),\"\")","v":""}]
[null,"","","",null,"",null,"",null,"",null,null,{"$f":"IFERROR(VLOOKUP(Table2[[#This Row],[Departamento (Admin 1)]],'P-codes'!$E$2:$F$15,2,FALSE),\"\")","v":""},null,{"$f":"IFERROR(VLOOKUP(Table2[[#This Row],[Municipio (Admin 2)]],'P-codes'!$C$2:$D$267,2,FALSE),\"\")","v":""},null,"",null,"",null,null,null,null,null,null,{"$f":"IF(SUM(Table2[[#This Row],[Total de hogares asistidos en el periodo entre reportes]],Table2[[#This Row],[Total de hogares asistidos en el periodo entre reportes2]:[De este total son hogares desplazados]])<>0,IF(SUM(Table2[[#This Row],[Total de hogares asistidos en el periodo entre reportes2]:[De este total son hogares desplazados]])=Table2[[#This Row],[Total de hogares asistidos en el periodo entre reportes]],0,1),\"\")","v":""},null,null,null,null,null,null,null,{"$f":"IF(SUM(Table2[[#This Row],[Total de personas asistidas en el periodo entre reportes]],Table2[[#This Row],[De este total son niñas de 0 a 18 años]:[De este total son hombres de 60 años o mas]])<>0,IF(SUM(Table2[[#This Row],[De este total son niñas de 0 a 18 años]:[De este total son hombres de 60 años o mas]])=Table2[[#This Row],[Total de personas asistidas en el periodo entre reportes]],0,1),\"\")","v":""}]
[null,"","","",null,"",null,"",null,"",null,null,{"$f":"IFERROR(VLOOKUP(Table2[[#This Row],[Departamento (Admin 1)]],'P-codes'!$E$2:$F$15,2,FALSE),\"\")","v":""},null,{"$f":"IFERROR(VLOOKUP(Table2[[#This Row],[Municipio (Admin 2)]],'P-codes'!$C$2:$D$267,2,FALSE),\"\")","v":""},null,"",null,"",null,null,null,null,null,null,{"$f":"IF(SUM(Table2[[#This Row],[Total de hogares asistidos en el periodo entre reportes]],Table2[[#This Row],[Total de hogares asistidos en el periodo entre reportes2]:[De este total son hogares desplazados]])<>0,IF(SUM(Table2[[#This Row],[Total de hogares asistidos en el periodo entre reportes2]:[De este total son hogares desplazados]])=Table2[[#This Row],[Total de hogares asistidos en el periodo entre reportes]],0,1),\"\")","v":""},null,null,null,null,null,null,null,{"$f":"IF(SUM(Table2[[#This Row],[Total de personas asistidas en el periodo entre reportes]],Table2[[#This Row],[De este total son niñas de 0 a 18 años]:[De este total son hombres de 60 años o mas]])<>0,IF(SUM(Table2[[#This Row],[De este total son niñas de 0 a 18 años]:[De este total son hombres de 60 años o mas]])=Table2[[#This Row],[Total de personas asistidas en el periodo entre reportes]],0,1),\"\")","v":""}]
[null,"","","",null,"",null,"",null,"",null,null,{"$f":"IFERROR(VLOOKUP(Table2[[#This Row],[Departamento (Admin 1)]],'P-codes'!$E$2:$F$15,2,FALSE),\"\")","v":""},null,{"$f":"IFERROR(VLOOKUP(Table2[[#This Row],[Municipio (Admin 2)]],'P-codes'!$C$2:$D$267,2,FALSE),\"\")","v":""},null,"",null,"",null,null,null,null,null,null,{"$f":"IF(SUM(Table2[[#This Row],[Total de hogares asistidos en el periodo entre reportes]],Table2[[#This Row],[Total de hogares asistidos en el periodo entre reportes2]:[De este total son hogares desplazados]])<>0,IF(SUM(Table2[[#This Row],[Total de hogares asistidos en el periodo entre reportes2]:[De este total son hogares desplazados]])=Table2[[#This Row],[Total de hogares asistidos en el periodo entre reportes]],0,1),\"\")","v":""},null,null,null,null,null,null,null,{"$f":"IF(SUM(Table2[[#This Row],[Total de personas asistidas en el periodo entre reportes]],Table2[[#This Row],[De este total son niñas de 0 a 18 años]:[De este total son hombres de 60 años o mas]])<>0,IF(SUM(Table2[[#This Row],[De este total son niñas de 0 a 18 años]:[De este total son hombres de 60 años o mas]])=Table2[[#This Row],[Total de personas asistidas en el periodo entre reportes]],0,1),\"\")","v":""}]
[null,"","","",null,"",null,"",null,"",null,null,{"$f":"IFERROR(VLOOKUP(Table2[[#This Row],[Departamento (Admin 1)]],'P-codes'!$E$2:$F$15,2,FALSE),\"\")","v":""},null,{"$f":"IFERROR(VLOOKUP(Table2[[#This Row],[Municipio (Admin 2)]],'P-codes'!$C$2:$D$267,2,FALSE),\"\")","v":""},null,"",null,"",null,null,null,null,null,null,{"$f":"IF(SUM(Table2[[#This Row],[Total de hogares asistidos en el periodo entre reportes]],Table2[[#This Row],[Total de hogares asistidos en el periodo entre reportes2]:[De este total son hogares desplazados]])<>0,IF(SUM(Table2[[#This Row],[Total de hogares asistidos en el periodo entre reportes2]:[De este total son hogares desplazados]])=Table2[[#This Row],[Total de hogares asistidos en el periodo entre reportes]],0,1),\"\")","v":""},null,null,null,null,null,null,null,{"$f":"IF(SUM(Table2[[#This Row],[Total de personas asistidas en el periodo entre reportes]],Table2[[#This Row],[De este total son niñas de 0 a 18 años]:[De este total son hombres de 60 años o mas]])<>0,IF(SUM(Table2[[#This Row],[De este total son niñas de 0 a 18 años]:[De este total son hombres de 60 años o mas]])=Table2[[#This Row],[Total de personas asistidas en el periodo entre reportes]],0,1),\"\")","v":""}]
[null,"","","",null,"",null,"",null,"",null,null,{"$f":"IFERROR(VLOOKUP(Table2[[#This Row],[Departamento (Admin 1)]],'P-codes'!$E$2:$F$15,2,FALSE),\"\")","v":""},null,{"$f":"IFERROR(VLOOKUP(Table2[[#This Row],[Municipio (Admin 2)]],'P-codes'!$C$2:$D$267,2,FALSE),\"\")","v":""},null,"",null,"",null,null,null,null,null,null,{"$f":"IF(SUM(Table2[[#This Row],[Total de hogares asistidos en el periodo entre reportes]],Table2[[#This Row],[Total de hogares asistidos en el periodo entre reportes2]:[De este total son hogares desplazados]])<>0,IF(SUM(Table2[[#This Row],[Total de hogares asistidos en el periodo entre reportes2]:[De este total son hogares desplazados]])=Table2[[#This Row],[Total de hogares asistidos en el periodo entre reportes]],0,1),\"\")","v":""},null,null,null,null,null,null,null,{"$f":"IF(SUM(Table2[[#This Row],[Total de personas asistidas en el periodo entre reportes]],Table2[[#This Row],[De este total son niñas de 0 a 18 años]:[De este total son hombres de 60 años o mas]])<>0,IF(SUM(Table2[[#This Row],[De este total son niñas de 0 a 18 años]:[De este total son hombres de 60 años o mas]])=Table2[[#This Row],[Total de personas asistidas en el periodo entre reportes]],0,1),\"\")","v":""}]
[null,"","","",null,"",null,"",null,"",null,null,{"$f":"IFERROR(VLOOKUP(Table2[[#This Row],[Departamento (Admin 1)]],'P-codes'!$E$2:$F$15,2,FALSE),\"\")","v":""},null,{"$f":"IFERROR(VLOOKUP(Table2[[#This Row],[Municipio (Admin 2)]],'P-codes'!$C$2:$D$267,2,FALSE),\"\")","v":""},null,"",null,"",null,null,null,null,null,null,{"$f":"IF(SUM(Table2[[#This Row],[Total de hogares asistidos en el periodo entre reportes]],Table2[[#This Row],[Total de hogares asistidos en el periodo entre reportes2]:[De este total son hogares desplazados]])<>0,IF(SUM(Table2[[#This Row],[Total de hogares asistidos en el periodo entre reportes2]:[De este total son hogares desplazados]])=Table2[[#This Row],[Total de hogares asistidos en el periodo entre reportes]],0,1),\"\")","v":""},null,null,null,null,null,null,null,{"$f":"IF(SUM(Table2[[#This Row],[Total de personas asistidas en el periodo entre reportes]],Table2[[#This Row],[De este total son niñas de 0 a 18 años]:[De este total son hombres de 60 años o mas]])<>0,IF(SUM(Table2[[#This Row],[De este total son niñas de 0 a 18 años]:[De este total son hombres de 60 años o mas]])=Table2[[#This Row],[Total de personas asistidas en el periodo entre reportes]],0,1),\"\")","v":""}]
[null,{"$f":"IF($A70<>\"\",YEAR($A70),\"\")","v":""},{"$f":"IF($A70<>\"\",TEXT($A70,\"[$-es-SV]mmmm\"),\"\")","v":""},{"$f":"IF($A70<>\"\",DAY($A70),\"\")","v":""},null,{"$f":"IF(E70=\"Otra\",\"Escriba un nombre aquí\",IF(E70<>\"\",\"NA\",\"\"))","v":""},null,{"$f":"IF(G70=\"Otra\",\"Escriba un nombre aquí\",IF(G70<>\"\",\"NA\",\"\"))","v":""},null,{"$f":"IF(I70=\"Otra\",\"Escriba un nombre aquí\",IF(I70<>\"\",\"NA\",\"\"))","v":""},null,null,{"$f":"IFERROR(VLOOKUP(Table2[[#This Row],[Departamento (Admin 1)]],'P-codes'!$E$2:$F$15,2,FALSE),\"\")","v":""},null,{"$f":"IFERROR(VLOOKUP(Table2[[#This Row],[Municipio (Admin 2)]],'P-codes'!$C$2:$D$267,2,FALSE),\"\")","v":""},null,{"$f":"IF(P70=\"Otra\",\"Escriba un nombre aquí\",IF(P70<>\"\",\"NA\",\"\"))","v":""},null,{"$f":"IF(R70=\"Otra\",\"Escriba un nombre aquí\",IF(R70<>\"\",\"NA\",\"\"))","v":""},null,null,null,null,null,null,{"$f":"IF(SUM(Table2[[#This Row],[Total de hogares asistidos en el periodo entre reportes]],Table2[[#This Row],[Total de hogares asistidos en el periodo entre reportes2]:[De este total son hogares desplazados]])<>0,IF(SUM(Table2[[#This Row],[Total de hogares asistidos en el periodo entre reportes2]:[De este total son hogares desplazados]])=Table2[[#This Row],[Total de hogares asistidos en el periodo entre reportes]],0,1),\"\")","v":""},null,null,null,null,null,null,null,{"$f":"IF(SUM(Table2[[#This Row],[Total de personas asistidas en el periodo entre reportes]],Table2[[#This Row],[De este total son niñas de 0 a 18 años]:[De este total son hombres de 60 años o mas]])<>0,IF(SUM(Table2[[#This Row],[De este total son niñas de 0 a 18 años]:[De este total son hombres de 60 años o mas]])=Table2[[#This Row],[Total de personas asistidas en el periodo entre reportes]],0,1),\"\")","v":""}]
[null,"","","",null,"",null,"",null,"",null,null,{"$f":"IFERROR(VLOOKUP(Table2[[#This Row],[Departamento (Admin 1)]],'P-codes'!$E$2:$F$15,2,FALSE),\"\")","v":""},null,{"$f":"IFERROR(VLOOKUP(Table2[[#This Row],[Municipio (Admin 2)]],'P-codes'!$C$2:$D$267,2,FALSE),\"\")","v":""},null,"",null,"",null,null,null,null,null,null,{"$f":"IF(SUM(Table2[[#This Row],[Total de hogares asistidos en el periodo entre reportes]],Table2[[#This Row],[Total de hogares asistidos en el periodo entre reportes2]:[De este total son hogares desplazados]])<>0,IF(SUM(Table2[[#This Row],[Total de hogares asistidos en el periodo entre reportes2]:[De este total son hogares desplazados]])=Table2[[#This Row],[Total de hogares asistidos en el periodo entre reportes]],0,1),\"\")","v":""},null,null,null,null,null,null,null,{"$f":"IF(SUM(Table2[[#This Row],[Total de personas asistidas en el periodo entre reportes]],Table2[[#This Row],[De este total son niñas de 0 a 18 años]:[De este total son hombres de 60 años o mas]])<>0,IF(SUM(Table2[[#This Row],[De este total son niñas de 0 a 18 años]:[De este total son hombres de 60 años o mas]])=Table2[[#This Row],[Total de personas asistidas en el periodo entre reportes]],0,1),\"\")","v":""}]
[null,"","","",null,"",null,"",null,"",null,null,{"$f":"IFERROR(VLOOKUP(Table2[[#This Row],[Departamento (Admin 1)]],'P-codes'!$E$2:$F$15,2,FALSE),\"\")","v":""},null,{"$f":"IFERROR(VLOOKUP(Table2[[#This Row],[Municipio (Admin 2)]],'P-codes'!$C$2:$D$267,2,FALSE),\"\")","v":""},null,"",null,"",null,null,null,null,null,null,{"$f":"IF(SUM(Table2[[#This Row],[Total de hogares asistidos en el periodo entre reportes]],Table2[[#This Row],[Total de hogares asistidos en el periodo entre reportes2]:[De este total son hogares desplazados]])<>0,IF(SUM(Table2[[#This Row],[Total de hogares asistidos en el periodo entre reportes2]:[De este total son hogares desplazados]])=Table2[[#This Row],[Total de hogares asistidos en el periodo entre reportes]],0,1),\"\")","v":""},null,null,null,null,null,null,null,{"$f":"IF(SUM(Table2[[#This Row],[Total de personas asistidas en el periodo entre reportes]],Table2[[#This Row],[De este total son niñas de 0 a 18 años]:[De este total son hombres de 60 años o mas]])<>0,IF(SUM(Table2[[#This Row],[De este total son niñas de 0 a 18 años]:[De este total son hombres de 60 años o mas]])=Table2[[#This Row],[Total de personas asistidas en el periodo entre reportes]],0,1),\"\")","v":""}]
[null,"","","",null,"",null,"",null,"",null,null,{"$f":"IFERROR(VLOOKUP(Table2[[#This Row],[Departamento (Admin 1)]],'P-codes'!$E$2:$F$15,2,FALSE),\"\")","v":""},null,{"$f":"IFERROR(VLOOKUP(Table2[[#This Row],[Municipio (Admin 2)]],'P-codes'!$C$2:$D$267,2,FALSE),\"\")","v":""},null,"",null,"",null,null,null,null,null,null,{"$f":"IF(SUM(Table2[[#This Row],[Total de hogares asistidos en el periodo entre reportes]],Table2[[#This Row],[Total de hogares asistidos en el periodo entre reportes2]:[De este total son hogares desplazados]])<>0,IF(SUM(Table2[[#This Row],[Total de hogares asistidos en el periodo entre reportes2]:[De este total son hogares desplazados]])=Table2[[#This Row],[Total de hogares asistidos en el periodo entre reportes]],0,1),\"\")","v":""},null,null,null,null,null,null,null,{"$f":"IF(SUM(Table2[[#This Row],[Total de personas asistidas en el periodo entre reportes]],Table2[[#This Row],[De este total son niñas de 0 a 18 años]:[De este total son hombres de 60 años o mas]])<>0,IF(SUM(Table2[[#This Row],[De este total son niñas de 0 a 18 años]:[De este total son hombres de 60 años o mas]])=Table2[[#This Row],[Total de personas asistidas en el periodo entre reportes]],0,1),\"\")","v":""}]
[null,"","","",null,"",null,"",null,"",null,null,{"$f":"IFERROR(VLOOKUP(Table2[[#This Row],[Departamento (Admin 1)]],'P-codes'!$E$2:$F$15,2,FALSE),\"\")","v":""},null,{"$f":"IFERROR(VLOOKUP(Table2[[#This Row],[Municipio (Admin 2)]],'P-codes'!$C$2:$D$267,2,FALSE),\"\")","v":""},null,"",null,"",null,null,null,null,null,null,{"$f":"IF(SUM(Table2[[#This Row],[Total de hogares asistidos en el periodo entre reportes]],Table2[[#This Row],[Total de hogares asistidos en el periodo entre reportes2]:[De este total son hogares desplazados]])<>0,IF(SUM(Table2[[#This Row],[Total de hogares asistidos en el periodo entre reportes2]:[De este total son hogares desplazados]])=Table2[[#This Row],[Total de hogares asistidos en el periodo entre reportes]],0,1),\"\")","v":""},null,null,null,null,null,null,null,{"$f":"IF(SUM(Table2[[#This Row],[Total de personas asistidas en el periodo entre reportes]],Table2[[#This Row],[De este total son niñas de 0 a 18 años]:[De este total son hombres de 60 años o mas]])<>0,IF(SUM(Table2[[#This Row],[De este total son niñas de 0 a 18 años]:[De este total son hombres de 60 años o mas]])=Table2[[#This Row],[Total de personas asistidas en el periodo entre reportes]],0,1),\"\")","v":""}]
[null,"","","",null,"",null,"",null,"",null,null,{"$f":"IFERROR(VLOOKUP(Table2[[#This Row],[Departamento (Admin 1)]],'P-codes'!$E$2:$F$15,2,FALSE),\"\")","v":""},null,{"$f":"IFERROR(VLOOKUP(Table2[[#This Row],[Municipio (Admin 2)]],'P-codes'!$C$2:$D$267,2,FALSE),\"\")","v":""},null,"",null,"",null,null,null,null,null,null,{"$f":"IF(SUM(Table2[[#This Row],[Total de hogares asistidos en el periodo entre reportes]],Table2[[#This Row],[Total de hogares asistidos en el periodo entre reportes2]:[De este total son hogares desplazados]])<>0,IF(SUM(Table2[[#This Row],[Total de hogares asistidos en el periodo entre reportes2]:[De este total son hogares desplazados]])=Table2[[#This Row],[Total de hogares asistidos en el periodo entre reportes]],0,1),\"\")","v":""},null,null,null,null,null,null,null,{"$f":"IF(SUM(Table2[[#This Row],[Total de personas asistidas en el periodo entre reportes]],Table2[[#This Row],[De este total son niñas de 0 a 18 años]:[De este total son hombres de 60 años o mas]])<>0,IF(SUM(Table2[[#This Row],[De este total son niñas de 0 a 18 años]:[De este total son hombres de 60 años o mas]])=Table2[[#This Row],[Total de personas asistidas en el periodo entre reportes]],0,1),\"\")","v":""}]
[null,"","","",null,"",null,"",null,"",null,null,{"$f":"IFERROR(VLOOKUP(Table2[[#This Row],[Departamento (Admin 1)]],'P-codes'!$E$2:$F$15,2,FALSE),\"\")","v":""},null,{"$f":"IFERROR(VLOOKUP(Table2[[#This Row],[Municipio (Admin 2)]],'P-codes'!$C$2:$D$267,2,FALSE),\"\")","v":""},null,"",null,"",null,null,null,null,null,null,{"$f":"IF(SUM(Table2[[#This Row],[Total de hogares asistidos en el periodo entre reportes]],Table2[[#This Row],[Total de hogares asistidos en el periodo entre reportes2]:[De este total son hogares desplazados]])<>0,IF(SUM(Table2[[#This Row],[Total de hogares asistidos en el periodo entre reportes2]:[De este total son hogares desplazados]])=Table2[[#This Row],[Total de hogares asistidos en el periodo entre reportes]],0,1),\"\")","v":""},null,null,null,null,null,null,null,{"$f":"IF(SUM(Table2[[#This Row],[Total de personas asistidas en el periodo entre reportes]],Table2[[#This Row],[De este total son niñas de 0 a 18 años]:[De este total son hombres de 60 años o mas]])<>0,IF(SUM(Table2[[#This Row],[De este total son niñas de 0 a 18 años]:[De este total son hombres de 60 años o mas]])=Table2[[#This Row],[Total de personas asistidas en el periodo entre reportes]],0,1),\"\")","v":""}]
[null,"","","",null,"",null,"",null,"",null,null,{"$f":"IFERROR(VLOOKUP(Table2[[#This Row],[Departamento (Admin 1)]],'P-codes'!$E$2:$F$15,2,FALSE),\"\")","v":""},null,{"$f":"IFERROR(VLOOKUP(Table2[[#This Row],[Municipio (Admin 2)]],'P-codes'!$C$2:$D$267,2,FALSE),\"\")","v":""},null,"",null,"",null,null,null,null,null,null,{"$f":"IF(SUM(Table2[[#This Row],[Total de hogares asistidos en el periodo entre reportes]],Table2[[#This Row],[Total de hogares asistidos en el periodo entre reportes2]:[De este total son hogares desplazados]])<>0,IF(SUM(Table2[[#This Row],[Total de hogares asistidos en el periodo entre reportes2]:[De este total son hogares desplazados]])=Table2[[#This Row],[Total de hogares asistidos en el periodo entre reportes]],0,1),\"\")","v":""},null,null,null,null,null,null,null,{"$f":"IF(SUM(Table2[[#This Row],[Total de personas asistidas en el periodo entre reportes]],Table2[[#This Row],[De este total son niñas de 0 a 18 años]:[De este total son hombres de 60 años o mas]])<>0,IF(SUM(Table2[[#This Row],[De este total son niñas de 0 a 18 años]:[De este total son hombres de 60 años o mas]])=Table2[[#This Row],[Total de personas asistidas en el periodo entre reportes]],0,1),\"\")","v":""}]
[null,"","","",null,"",null,"",null,"",null,null,{"$f":"IFERROR(VLOOKUP(Table2[[#This Row],[Departamento (Admin 1)]],'P-codes'!$E$2:$F$15,2,FALSE),\"\")","v":""},null,{"$f":"IFERROR(VLOOKUP(Table2[[#This Row],[Municipio (Admin 2)]],'P-codes'!$C$2:$D$267,2,FALSE),\"\")","v":""},null,"",null,"",null,null,null,null,null,null,{"$f":"IF(SUM(Table2[[#This Row],[Total de hogares asistidos en el periodo entre reportes]],Table2[[#This Row],[Total de hogares asistidos en el periodo entre reportes2]:[De este total son hogares desplazados]])<>0,IF(SUM(Table2[[#This Row],[Total de hogares asistidos en el periodo entre reportes2]:[De este total son hogares desplazados]])=Table2[[#This Row],[Total de hogares asistidos en el periodo entre reportes]],0,1),\"\")","v":""},null,null,null,null,null,null,null,{"$f":"IF(SUM(Table2[[#This Row],[Total de personas asistidas en el periodo entre reportes]],Table2[[#This Row],[De este total son niñas de 0 a 18 años]:[De este total son hombres de 60 años o mas]])<>0,IF(SUM(Table2[[#This Row],[De este total son niñas de 0 a 18 años]:[De este total son hombres de 60 años o mas]])=Table2[[#This Row],[Total de personas asistidas en el periodo entre reportes]],0,1),\"\")","v":""}]
[null,"","","",null,"",null,"",null,"",null,null,{"$f":"IFERROR(VLOOKUP(Table2[[#This Row],[Departamento (Admin 1)]],'P-codes'!$E$2:$F$15,2,FALSE),\"\")","v":""},null,{"$f":"IFERROR(VLOOKUP(Table2[[#This Row],[Municipio (Admin 2)]],'P-codes'!$C$2:$D$267,2,FALSE),\"\")","v":""},null,"",null,"",null,null,null,null,null,null,{"$f":"IF(SUM(Table2[[#This Row],[Total de hogares asistidos en el periodo entre reportes]],Table2[[#This Row],[Total de hogares asistidos en el periodo entre reportes2]:[De este total son hogares desplazados]])<>0,IF(SUM(Table2[[#This Row],[Total de hogares asistidos en el periodo entre reportes2]:[De este total son hogares desplazados]])=Table2[[#This Row],[Total de hogares asistidos en el periodo entre reportes]],0,1),\"\")","v":""},null,null,null,null,null,null,null,{"$f":"IF(SUM(Table2[[#This Row],[Total de personas asistidas en el periodo entre reportes]],Table2[[#This Row],[De este total son niñas de 0 a 18 años]:[De este total son hombres de 60 años o mas]])<>0,IF(SUM(Table2[[#This Row],[De este total son niñas de 0 a 18 años]:[De este total son hombres de 60 años o mas]])=Table2[[#This Row],[Total de personas asistidas en el periodo entre reportes]],0,1),\"\")","v":""}]
[null,"","","",null,"",null,"",null,"",null,null,{"$f":"IFERROR(VLOOKUP(Table2[[#This Row],[Departamento (Admin 1)]],'P-codes'!$E$2:$F$15,2,FALSE),\"\")","v":""},null,{"$f":"IFERROR(VLOOKUP(Table2[[#This Row],[Municipio (Admin 2)]],'P-codes'!$C$2:$D$267,2,FALSE),\"\")","v":""},null,"",null,"",null,null,null,null,null,null,{"$f":"IF(SUM(Table2[[#This Row],[Total de hogares asistidos en el periodo entre reportes]],Table2[[#This Row],[Total de hogares asistidos en el periodo entre reportes2]:[De este total son hogares desplazados]])<>0,IF(SUM(Table2[[#This Row],[Total de hogares asistidos en el periodo entre reportes2]:[De este total son hogares desplazados]])=Table2[[#This Row],[Total de hogares asistidos en el periodo entre reportes]],0,1),\"\")","v":""},null,null,null,null,null,null,null,{"$f":"IF(SUM(Table2[[#This Row],[Total de personas asistidas en el periodo entre reportes]],Table2[[#This Row],[De este total son niñas de 0 a 18 años]:[De este total son hombres de 60 años o mas]])<>0,IF(SUM(Table2[[#This Row],[De este total son niñas de 0 a 18 años]:[De este total son hombres de 60 años o mas]])=Table2[[#This Row],[Total de personas asistidas en el periodo entre reportes]],0,1),\"\")","v":""}]
[null,"","","",null,"",null,"",null,"",null,null,{"$f":"IFERROR(VLOOKUP(Table2[[#This Row],[Departamento (Admin 1)]],'P-codes'!$E$2:$F$15,2,FALSE),\"\")","v":""},null,{"$f":"IFERROR(VLOOKUP(Table2[[#This Row],[Municipio (Admin 2)]],'P-codes'!$C$2:$D$267,2,FALSE),\"\")","v":""},null,"",null,"",null,null,null,null,null,null,{"$f":"IF(SUM(Table2[[#This Row],[Total de hogares asistidos en el periodo entre reportes]],Table2[[#This Row],[Total de hogares asistidos en el periodo entre reportes2]:[De este total son hogares desplazados]])<>0,IF(SUM(Table2[[#This Row],[Total de hogares asistidos en el periodo entre reportes2]:[De este total son hogares desplazados]])=Table2[[#This Row],[Total de hogares asistidos en el periodo entre reportes]],0,1),\"\")","v":""},null,null,null,null,null,null,null,{"$f":"IF(SUM(Table2[[#This Row],[Total de personas asistidas en el periodo entre reportes]],Table2[[#This Row],[De este total son niñas de 0 a 18 años]:[De este total son hombres de 60 años o mas]])<>0,IF(SUM(Table2[[#This Row],[De este total son niñas de 0 a 18 años]:[De este total son hombres de 60 años o mas]])=Table2[[#This Row],[Total de personas asistidas en el periodo entre reportes]],0,1),\"\")","v":""}]
[null,"","","",null,"",null,"",null,"",null,null,{"$f":"IFERROR(VLOOKUP(Table2[[#This Row],[Departamento (Admin 1)]],'P-codes'!$E$2:$F$15,2,FALSE),\"\")","v":""},null,{"$f":"IFERROR(VLOOKUP(Table2[[#This Row],[Municipio (Admin 2)]],'P-codes'!$C$2:$D$267,2,FALSE),\"\")","v":""},null,"",null,"",null,null,null,null,null,null,{"$f":"IF(SUM(Table2[[#This Row],[Total de hogares asistidos en el periodo entre reportes]],Table2[[#This Row],[Total de hogares asistidos en el periodo entre reportes2]:[De este total son hogares desplazados]])<>0,IF(SUM(Table2[[#This Row],[Total de hogares asistidos en el periodo entre reportes2]:[De este total son hogares desplazados]])=Table2[[#This Row],[Total de hogares asistidos en el periodo entre reportes]],0,1),\"\")","v":""},null,null,null,null,null,null,null,{"$f":"IF(SUM(Table2[[#This Row],[Total de personas asistidas en el periodo entre reportes]],Table2[[#This Row],[De este total son niñas de 0 a 18 años]:[De este total son hombres de 60 años o mas]])<>0,IF(SUM(Table2[[#This Row],[De este total son niñas de 0 a 18 años]:[De este total son hombres de 60 años o mas]])=Table2[[#This Row],[Total de personas asistidas en el periodo entre reportes]],0,1),\"\")","v":""}]
[null,"","","",null,"",null,"",null,"",null,null,{"$f":"IFERROR(VLOOKUP(Table2[[#This Row],[Departamento (Admin 1)]],'P-codes'!$E$2:$F$15,2,FALSE),\"\")","v":""},null,{"$f":"IFERROR(VLOOKUP(Table2[[#This Row],[Municipio (Admin 2)]],'P-codes'!$C$2:$D$267,2,FALSE),\"\")","v":""},null,"",null,"",null,null,null,null,null,null,{"$f":"IF(SUM(Table2[[#This Row],[Total de hogares asistidos en el periodo entre reportes]],Table2[[#This Row],[Total de hogares asistidos en el periodo entre reportes2]:[De este total son hogares desplazados]])<>0,IF(SUM(Table2[[#This Row],[Total de hogares asistidos en el periodo entre reportes2]:[De este total son hogares desplazados]])=Table2[[#This Row],[Total de hogares asistidos en el periodo entre reportes]],0,1),\"\")","v":""},null,null,null,null,null,null,null,{"$f":"IF(SUM(Table2[[#This Row],[Total de personas asistidas en el periodo entre reportes]],Table2[[#This Row],[De este total son niñas de 0 a 18 años]:[De este total son hombres de 60 años o mas]])<>0,IF(SUM(Table2[[#This Row],[De este total son niñas de 0 a 18 años]:[De este total son hombres de 60 años o mas]])=Table2[[#This Row],[Total de personas asistidas en el periodo entre reportes]],0,1),\"\")","v":""}]
[null,"","","",null,"",null,"",null,"",null,null,{"$f":"IFERROR(VLOOKUP(Table2[[#This Row],[Departamento (Admin 1)]],'P-codes'!$E$2:$F$15,2,FALSE),\"\")","v":""},null,{"$f":"IFERROR(VLOOKUP(Table2[[#This Row],[Municipio (Admin 2)]],'P-codes'!$C$2:$D$267,2,FALSE),\"\")","v":""},null,"",null,"",null,null,null,null,null,null,{"$f":"IF(SUM(Table2[[#This Row],[Total de hogares asistidos en el periodo entre reportes]],Table2[[#This Row],[Total de hogares asistidos en el periodo entre reportes2]:[De este total son hogares desplazados]])<>0,IF(SUM(Table2[[#This Row],[Total de hogares asistidos en el periodo entre reportes2]:[De este total son hogares desplazados]])=Table2[[#This Row],[Total de hogares asistidos en el periodo entre reportes]],0,1),\"\")","v":""},null,null,null,null,null,null,null,{"$f":"IF(SUM(Table2[[#This Row],[Total de personas asistidas en el periodo entre reportes]],Table2[[#This Row],[De este total son niñas de 0 a 18 años]:[De este total son hombres de 60 años o mas]])<>0,IF(SUM(Table2[[#This Row],[De este total son niñas de 0 a 18 años]:[De este total son hombres de 60 años o mas]])=Table2[[#This Row],[Total de personas asistidas en el periodo entre reportes]],0,1),\"\")","v":""}]
[null,"","","",null,"",null,"",null,"",null,null,{"$f":"IFERROR(VLOOKUP(Table2[[#This Row],[Departamento (Admin 1)]],'P-codes'!$E$2:$F$15,2,FALSE),\"\")","v":""},null,{"$f":"IFERROR(VLOOKUP(Table2[[#This Row],[Municipio (Admin 2)]],'P-codes'!$C$2:$D$267,2,FALSE),\"\")","v":""},null,"",null,"",null,null,null,null,null,null,{"$f":"IF(SUM(Table2[[#This Row],[Total de hogares asistidos en el periodo entre reportes]],Table2[[#This Row],[Total de hogares asistidos en el periodo entre reportes2]:[De este total son hogares desplazados]])<>0,IF(SUM(Table2[[#This Row],[Total de hogares asistidos en el periodo entre reportes2]:[De este total son hogares desplazados]])=Table2[[#This Row],[Total de hogares asistidos en el periodo entre reportes]],0,1),\"\")","v":""},null,null,null,null,null,null,null,{"$f":"IF(SUM(Table2[[#This Row],[Total de personas asistidas en el periodo entre reportes]],Table2[[#This Row],[De este total son niñas de 0 a 18 años]:[De este total son hombres de 60 años o mas]])<>0,IF(SUM(Table2[[#This Row],[De este total son niñas de 0 a 18 años]:[De este total son hombres de 60 años o mas]])=Table2[[#This Row],[Total de personas asistidas en el periodo entre reportes]],0,1),\"\")","v":""}]
[null,"","","",null,"",null,"",null,"",null,null,{"$f":"IFERROR(VLOOKUP(Table2[[#This Row],[Departamento (Admin 1)]],'P-codes'!$E$2:$F$15,2,FALSE),\"\")","v":""},null,{"$f":"IFERROR(VLOOKUP(Table2[[#This Row],[Municipio (Admin 2)]],'P-codes'!$C$2:$D$267,2,FALSE),\"\")","v":""},null,"",null,"",null,null,null,null,null,null,{"$f":"IF(SUM(Table2[[#This Row],[Total de hogares asistidos en el periodo entre reportes]],Table2[[#This Row],[Total de hogares asistidos en el periodo entre reportes2]:[De este total son hogares desplazados]])<>0,IF(SUM(Table2[[#This Row],[Total de hogares asistidos en el periodo entre reportes2]:[De este total son hogares desplazados]])=Table2[[#This Row],[Total de hogares asistidos en el periodo entre reportes]],0,1),\"\")","v":""},null,null,null,null,null,null,null,{"$f":"IF(SUM(Table2[[#This Row],[Total de personas asistidas en el periodo entre reportes]],Table2[[#This Row],[De este total son niñas de 0 a 18 años]:[De este total son hombres de 60 años o mas]])<>0,IF(SUM(Table2[[#This Row],[De este total son niñas de 0 a 18 años]:[De este total son hombres de 60 años o mas]])=Table2[[#This Row],[Total de personas asistidas en el periodo entre reportes]],0,1),\"\")","v":""}]
[null,"","","",null,"",null,"",null,"",null,null,{"$f":"IFERROR(VLOOKUP(Table2[[#This Row],[Departamento (Admin 1)]],'P-codes'!$E$2:$F$15,2,FALSE),\"\")","v":""},null,{"$f":"IFERROR(VLOOKUP(Table2[[#This Row],[Municipio (Admin 2)]],'P-codes'!$C$2:$D$267,2,FALSE),\"\")","v":""},null,"",null,"",null,null,null,null,null,null,{"$f":"IF(SUM(Table2[[#This Row],[Total de hogares asistidos en el periodo entre reportes]],Table2[[#This Row],[Total de hogares asistidos en el periodo entre reportes2]:[De este total son hogares desplazados]])<>0,IF(SUM(Table2[[#This Row],[Total de hogares asistidos en el periodo entre reportes2]:[De este total son hogares desplazados]])=Table2[[#This Row],[Total de hogares asistidos en el periodo entre reportes]],0,1),\"\")","v":""},null,null,null,null,null,null,null,{"$f":"IF(SUM(Table2[[#This Row],[Total de personas asistidas en el periodo entre reportes]],Table2[[#This Row],[De este total son niñas de 0 a 18 años]:[De este total son hombres de 60 años o mas]])<>0,IF(SUM(Table2[[#This Row],[De este total son niñas de 0 a 18 años]:[De este total son hombres de 60 años o mas]])=Table2[[#This Row],[Total de personas asistidas en el periodo entre reportes]],0,1),\"\")","v":""}]
[null,"","","",null,"",null,"",null,"",null,null,{"$f":"IFERROR(VLOOKUP(Table2[[#This Row],[Departamento (Admin 1)]],'P-codes'!$E$2:$F$15,2,FALSE),\"\")","v":""},null,{"$f":"IFERROR(VLOOKUP(Table2[[#This Row],[Municipio (Admin 2)]],'P-codes'!$C$2:$D$267,2,FALSE),\"\")","v":""},null,"",null,"",null,null,null,null,null,null,{"$f":"IF(SUM(Table2[[#This Row],[Total de hogares asistidos en el periodo entre reportes]],Table2[[#This Row],[Total de hogares asistidos en el periodo entre reportes2]:[De este total son hogares desplazados]])<>0,IF(SUM(Table2[[#This Row],[Total de hogares asistidos en el periodo entre reportes2]:[De este total son hogares desplazados]])=Table2[[#This Row],[Total de hogares asistidos en el periodo entre reportes]],0,1),\"\")","v":""},null,null,null,null,null,null,null,{"$f":"IF(SUM(Table2[[#This Row],[Total de personas asistidas en el periodo entre reportes]],Table2[[#This Row],[De este total son niñas de 0 a 18 años]:[De este total son hombres de 60 años o mas]])<>0,IF(SUM(Table2[[#This Row],[De este total son niñas de 0 a 18 años]:[De este total son hombres de 60 años o mas]])=Table2[[#This Row],[Total de personas asistidas en el periodo entre reportes]],0,1),\"\")","v":""}]
[null,"","","",null,"",null,"",null,"",null,null,{"$f":"IFERROR(VLOOKUP(Table2[[#This Row],[Departamento (Admin 1)]],'P-codes'!$E$2:$F$15,2,FALSE),\"\")","v":""},null,{"$f":"IFERROR(VLOOKUP(Table2[[#This Row],[Municipio (Admin 2)]],'P-codes'!$C$2:$D$267,2,FALSE),\"\")","v":""},null,"",null,"",null,null,null,null,null,null,{"$f":"IF(SUM(Table2[[#This Row],[Total de hogares asistidos en el periodo entre reportes]],Table2[[#This Row],[Total de hogares asistidos en el periodo entre reportes2]:[De este total son hogares desplazados]])<>0,IF(SUM(Table2[[#This Row],[Total de hogares asistidos en el periodo entre reportes2]:[De este total son hogares desplazados]])=Table2[[#This Row],[Total de hogares asistidos en el periodo entre reportes]],0,1),\"\")","v":""},null,null,null,null,null,null,null,{"$f":"IF(SUM(Table2[[#This Row],[Total de personas asistidas en el periodo entre reportes]],Table2[[#This Row],[De este total son niñas de 0 a 18 años]:[De este total son hombres de 60 años o mas]])<>0,IF(SUM(Table2[[#This Row],[De este total son niñas de 0 a 18 años]:[De este total son hombres de 60 años o mas]])=Table2[[#This Row],[Total de personas asistidas en el periodo entre reportes]],0,1),\"\")","v":""}]
[null,"","","",null,"",null,"",null,"",null,null,{"$f":"IFERROR(VLOOKUP(Table2[[#This Row],[Departamento (Admin 1)]],'P-codes'!$E$2:$F$15,2,FALSE),\"\")","v":""},null,{"$f":"IFERROR(VLOOKUP(Table2[[#This Row],[Municipio (Admin 2)]],'P-codes'!$C$2:$D$267,2,FALSE),\"\")","v":""},null,"",null,"",null,null,null,null,null,null,{"$f":"IF(SUM(Table2[[#This Row],[Total de hogares asistidos en el periodo entre reportes]],Table2[[#This Row],[Total de hogares asistidos en el periodo entre reportes2]:[De este total son hogares desplazados]])<>0,IF(SUM(Table2[[#This Row],[Total de hogares asistidos en el periodo entre reportes2]:[De este total son hogares desplazados]])=Table2[[#This Row],[Total de hogares asistidos en el periodo entre reportes]],0,1),\"\")","v":""},null,null,null,null,null,null,null,{"$f":"IF(SUM(Table2[[#This Row],[Total de personas asistidas en el periodo entre reportes]],Table2[[#This Row],[De este total son niñas de 0 a 18 años]:[De este total son hombres de 60 años o mas]])<>0,IF(SUM(Table2[[#This Row],[De este total son niñas de 0 a 18 años]:[De este total son hombres de 60 años o mas]])=Table2[[#This Row],[Total de personas asistidas en el periodo entre reportes]],0,1),\"\")","v":""}]
[null,"","","",null,"",null,"",null,"",null,null,{"$f":"IFERROR(VLOOKUP(Table2[[#This Row],[Departamento (Admin 1)]],'P-codes'!$E$2:$F$15,2,FALSE),\"\")","v":""},null,{"$f":"IFERROR(VLOOKUP(Table2[[#This Row],[Municipio (Admin 2)]],'P-codes'!$C$2:$D$267,2,FALSE),\"\")","v":""},null,"",null,"",null,null,null,null,null,null,{"$f":"IF(SUM(Table2[[#This Row],[Total de hogares asistidos en el periodo entre reportes]],Table2[[#This Row],[Total de hogares asistidos en el periodo entre reportes2]:[De este total son hogares desplazados]])<>0,IF(SUM(Table2[[#This Row],[Total de hogares asistidos en el periodo entre reportes2]:[De este total son hogares desplazados]])=Table2[[#This Row],[Total de hogares asistidos en el periodo entre reportes]],0,1),\"\")","v":""},null,null,null,null,null,null,null,{"$f":"IF(SUM(Table2[[#This Row],[Total de personas asistidas en el periodo entre reportes]],Table2[[#This Row],[De este total son niñas de 0 a 18 años]:[De este total son hombres de 60 años o mas]])<>0,IF(SUM(Table2[[#This Row],[De este total son niñas de 0 a 18 años]:[De este total son hombres de 60 años o mas]])=Table2[[#This Row],[Total de personas asistidas en el periodo entre reportes]],0,1),\"\")","v":""}]
[null,"","","",null,"",null,"",null,"",null,null,{"$f":"IFERROR(VLOOKUP(Table2[[#This Row],[Departamento (Admin 1)]],'P-codes'!$E$2:$F$15,2,FALSE),\"\")","v":""},null,{"$f":"IFERROR(VLOOKUP(Table2[[#This Row],[Municipio (Admin 2)]],'P-codes'!$C$2:$D$267,2,FALSE),\"\")","v":""},null,"",null,"",null,null,null,null,null,null,{"$f":"IF(SUM(Table2[[#This Row],[Total de hogares asistidos en el periodo entre reportes]],Table2[[#This Row],[Total de hogares asistidos en el periodo entre reportes2]:[De este total son hogares desplazados]])<>0,IF(SUM(Table2[[#This Row],[Total de hogares asistidos en el periodo entre reportes2]:[De este total son hogares desplazados]])=Table2[[#This Row],[Total de hogares asistidos en el periodo entre reportes]],0,1),\"\")","v":""},null,null,null,null,null,null,null,{"$f":"IF(SUM(Table2[[#This Row],[Total de personas asistidas en el periodo entre reportes]],Table2[[#This Row],[De este total son niñas de 0 a 18 años]:[De este total son hombres de 60 años o mas]])<>0,IF(SUM(Table2[[#This Row],[De este total son niñas de 0 a 18 años]:[De este total son hombres de 60 años o mas]])=Table2[[#This Row],[Total de personas asistidas en el periodo entre reportes]],0,1),\"\")","v":""}]
[null,"","","",null,"",null,"",null,"",null,null,{"$f":"IFERROR(VLOOKUP(Table2[[#This Row],[Departamento (Admin 1)]],'P-codes'!$E$2:$F$15,2,FALSE),\"\")","v":""},null,{"$f":"IFERROR(VLOOKUP(Table2[[#This Row],[Municipio (Admin 2)]],'P-codes'!$C$2:$D$267,2,FALSE),\"\")","v":""},null,"",null,"",null,null,null,null,null,null,{"$f":"IF(SUM(Table2[[#This Row],[Total de hogares asistidos en el periodo entre reportes]],Table2[[#This Row],[Total de hogares asistidos en el periodo entre reportes2]:[De este total son hogares desplazados]])<>0,IF(SUM(Table2[[#This Row],[Total de hogares asistidos en el periodo entre reportes2]:[De este total son hogares desplazados]])=Table2[[#This Row],[Total de hogares asistidos en el periodo entre reportes]],0,1),\"\")","v":""},null,null,null,null,null,null,null,{"$f":"IF(SUM(Table2[[#This Row],[Total de personas asistidas en el periodo entre reportes]],Table2[[#This Row],[De este total son niñas de 0 a 18 años]:[De este total son hombres de 60 años o mas]])<>0,IF(SUM(Table2[[#This Row],[De este total son niñas de 0 a 18 años]:[De este total son hombres de 60 años o mas]])=Table2[[#This Row],[Total de personas asistidas en el periodo entre reportes]],0,1),\"\")","v":""}]
[null,"","","",null,"",null,"",null,"",null,null,{"$f":"IFERROR(VLOOKUP(Table2[[#This Row],[Departamento (Admin 1)]],'P-codes'!$E$2:$F$15,2,FALSE),\"\")","v":""},null,{"$f":"IFERROR(VLOOKUP(Table2[[#This Row],[Municipio (Admin 2)]],'P-codes'!$C$2:$D$267,2,FALSE),\"\")","v":""},null,"",null,"",null,null,null,null,null,null,{"$f":"IF(SUM(Table2[[#This Row],[Total de hogares asistidos en el periodo entre reportes]],Table2[[#This Row],[Total de hogares asistidos en el periodo entre reportes2]:[De este total son hogares desplazados]])<>0,IF(SUM(Table2[[#This Row],[Total de hogares asistidos en el periodo entre reportes2]:[De este total son hogares desplazados]])=Table2[[#This Row],[Total de hogares asistidos en el periodo entre reportes]],0,1),\"\")","v":""},null,null,null,null,null,null,null,{"$f":"IF(SUM(Table2[[#This Row],[Total de personas asistidas en el periodo entre reportes]],Table2[[#This Row],[De este total son niñas de 0 a 18 años]:[De este total son hombres de 60 años o mas]])<>0,IF(SUM(Table2[[#This Row],[De este total son niñas de 0 a 18 años]:[De este total son hombres de 60 años o mas]])=Table2[[#This Row],[Total de personas asistidas en el periodo entre reportes]],0,1),\"\")","v":""}]
[null,"","","",null,"",null,"",null,"",null,null,{"$f":"IFERROR(VLOOKUP(Table2[[#This Row],[Departamento (Admin 1)]],'P-codes'!$E$2:$F$15,2,FALSE),\"\")","v":""},null,{"$f":"IFERROR(VLOOKUP(Table2[[#This Row],[Municipio (Admin 2)]],'P-codes'!$C$2:$D$267,2,FALSE),\"\")","v":""},null,"",null,"",null,null,null,null,null,null,{"$f":"IF(SUM(Table2[[#This Row],[Total de hogares asistidos en el periodo entre reportes]],Table2[[#This Row],[Total de hogares asistidos en el periodo entre reportes2]:[De este total son hogares desplazados]])<>0,IF(SUM(Table2[[#This Row],[Total de hogares asistidos en el periodo entre reportes2]:[De este total son hogares desplazados]])=Table2[[#This Row],[Total de hogares asistidos en el periodo entre reportes]],0,1),\"\")","v":""},null,null,null,null,null,null,null,{"$f":"IF(SUM(Table2[[#This Row],[Total de personas asistidas en el periodo entre reportes]],Table2[[#This Row],[De este total son niñas de 0 a 18 años]:[De este total son hombres de 60 años o mas]])<>0,IF(SUM(Table2[[#This Row],[De este total son niñas de 0 a 18 años]:[De este total son hombres de 60 años o mas]])=Table2[[#This Row],[Total de personas asistidas en el periodo entre reportes]],0,1),\"\")","v":""}]
[null,"","","",null,"",null,"",null,"",null,null,{"$f":"IFERROR(VLOOKUP(Table2[[#This Row],[Departamento (Admin 1)]],'P-codes'!$E$2:$F$15,2,FALSE),\"\")","v":""},null,{"$f":"IFERROR(VLOOKUP(Table2[[#This Row],[Municipio (Admin 2)]],'P-codes'!$C$2:$D$267,2,FALSE),\"\")","v":""},null,"",null,"",null,null,null,null,null,null,{"$f":"IF(SUM(Table2[[#This Row],[Total de hogares asistidos en el periodo entre reportes]],Table2[[#This Row],[Total de hogares asistidos en el periodo entre reportes2]:[De este total son hogares desplazados]])<>0,IF(SUM(Table2[[#This Row],[Total de hogares asistidos en el periodo entre reportes2]:[De este total son hogares desplazados]])=Table2[[#This Row],[Total de hogares asistidos en el periodo entre reportes]],0,1),\"\")","v":""},null,null,null,null,null,null,null,{"$f":"IF(SUM(Table2[[#This Row],[Total de personas asistidas en el periodo entre reportes]],Table2[[#This Row],[De este total son niñas de 0 a 18 años]:[De este total son hombres de 60 años o mas]])<>0,IF(SUM(Table2[[#This Row],[De este total son niñas de 0 a 18 años]:[De este total son hombres de 60 años o mas]])=Table2[[#This Row],[Total de personas asistidas en el periodo entre reportes]],0,1),\"\")","v":""}]
[null,"","","",null,"",null,"",null,"",null,null,{"$f":"IFERROR(VLOOKUP(Table2[[#This Row],[Departamento (Admin 1)]],'P-codes'!$E$2:$F$15,2,FALSE),\"\")","v":""},null,{"$f":"IFERROR(VLOOKUP(Table2[[#This Row],[Municipio (Admin 2)]],'P-codes'!$C$2:$D$267,2,FALSE),\"\")","v":""},null,"",null,"",null,null,null,null,null,null,{"$f":"IF(SUM(Table2[[#This Row],[Total de hogares asistidos en el periodo entre reportes]],Table2[[#This Row],[Total de hogares asistidos en el periodo entre reportes2]:[De este total son hogares desplazados]])<>0,IF(SUM(Table2[[#This Row],[Total de hogares asistidos en el periodo entre reportes2]:[De este total son hogares desplazados]])=Table2[[#This Row],[Total de hogares asistidos en el periodo entre reportes]],0,1),\"\")","v":""},null,null,null,null,null,null,null,{"$f":"IF(SUM(Table2[[#This Row],[Total de personas asistidas en el periodo entre reportes]],Table2[[#This Row],[De este total son niñas de 0 a 18 años]:[De este total son hombres de 60 años o mas]])<>0,IF(SUM(Table2[[#This Row],[De este total son niñas de 0 a 18 años]:[De este total son hombres de 60 años o mas]])=Table2[[#This Row],[Total de personas asistidas en el periodo entre reportes]],0,1),\"\")","v":""}]
[null,"","","",null,"",null,"",null,"",null,null,{"$f":"IFERROR(VLOOKUP(Table2[[#This Row],[Departamento (Admin 1)]],'P-codes'!$E$2:$F$15,2,FALSE),\"\")","v":""},null,{"$f":"IFERROR(VLOOKUP(Table2[[#This Row],[Municipio (Admin 2)]],'P-codes'!$C$2:$D$267,2,FALSE),\"\")","v":""},null,"",null,"",null,null,null,null,null,null,{"$f":"IF(SUM(Table2[[#This Row],[Total de hogares asistidos en el periodo entre reportes]],Table2[[#This Row],[Total de hogares asistidos en el periodo entre reportes2]:[De este total son hogares desplazados]])<>0,IF(SUM(Table2[[#This Row],[Total de hogares asistidos en el periodo entre reportes2]:[De este total son hogares desplazados]])=Table2[[#This Row],[Total de hogares asistidos en el periodo entre reportes]],0,1),\"\")","v":""},null,null,null,null,null,null,null,{"$f":"IF(SUM(Table2[[#This Row],[Total de personas asistidas en el periodo entre reportes]],Table2[[#This Row],[De este total son niñas de 0 a 18 años]:[De este total son hombres de 60 años o mas]])<>0,IF(SUM(Table2[[#This Row],[De este total son niñas de 0 a 18 años]:[De este total son hombres de 60 años o mas]])=Table2[[#This Row],[Total de personas asistidas en el periodo entre reportes]],0,1),\"\")","v":""}]
[null,"","","",null,"",null,"",null,"",null,null,{"$f":"IFERROR(VLOOKUP(Table2[[#This Row],[Departamento (Admin 1)]],'P-codes'!$E$2:$F$15,2,FALSE),\"\")","v":""},null,{"$f":"IFERROR(VLOOKUP(Table2[[#This Row],[Municipio (Admin 2)]],'P-codes'!$C$2:$D$267,2,FALSE),\"\")","v":""},null,"",null,"",null,null,null,null,null,null,{"$f":"IF(SUM(Table2[[#This Row],[Total de hogares asistidos en el periodo entre reportes]],Table2[[#This Row],[Total de hogares asistidos en el periodo entre reportes2]:[De este total son hogares desplazados]])<>0,IF(SUM(Table2[[#This Row],[Total de hogares asistidos en el periodo entre reportes2]:[De este total son hogares desplazados]])=Table2[[#This Row],[Total de hogares asistidos en el periodo entre reportes]],0,1),\"\")","v":""},null,null,null,null,null,null,null,{"$f":"IF(SUM(Table2[[#This Row],[Total de personas asistidas en el periodo entre reportes]],Table2[[#This Row],[De este total son niñas de 0 a 18 años]:[De este total son hombres de 60 años o mas]])<>0,IF(SUM(Table2[[#This Row],[De este total son niñas de 0 a 18 años]:[De este total son hombres de 60 años o mas]])=Table2[[#This Row],[Total de personas asistidas en el periodo entre reportes]],0,1),\"\")","v":""}]
[null,"","","",null,"",null,"",null,"",null,null,{"$f":"IFERROR(VLOOKUP(Table2[[#This Row],[Departamento (Admin 1)]],'P-codes'!$E$2:$F$15,2,FALSE),\"\")","v":""},null,{"$f":"IFERROR(VLOOKUP(Table2[[#This Row],[Municipio (Admin 2)]],'P-codes'!$C$2:$D$267,2,FALSE),\"\")","v":""},null,"",null,"",null,null,null,null,null,null,{"$f":"IF(SUM(Table2[[#This Row],[Total de hogares asistidos en el periodo entre reportes]],Table2[[#This Row],[Total de hogares asistidos en el periodo entre reportes2]:[De este total son hogares desplazados]])<>0,IF(SUM(Table2[[#This Row],[Total de hogares asistidos en el periodo entre reportes2]:[De este total son hogares desplazados]])=Table2[[#This Row],[Total de hogares asistidos en el periodo entre reportes]],0,1),\"\")","v":""},null,null,null,null,null,null,null,{"$f":"IF(SUM(Table2[[#This Row],[Total de personas asistidas en el periodo entre reportes]],Table2[[#This Row],[De este total son niñas de 0 a 18 años]:[De este total son hombres de 60 años o mas]])<>0,IF(SUM(Table2[[#This Row],[De este total son niñas de 0 a 18 años]:[De este total son hombres de 60 años o mas]])=Table2[[#This Row],[Total de personas asistidas en el periodo entre reportes]],0,1),\"\")","v":""}]
[null,{"$f":"IF($A101<>\"\",YEAR($A101),\"\")","v":""},{"$f":"IF($A101<>\"\",TEXT($A101,\"[$-es-SV]mmmm\"),\"\")","v":""},{"$f":"IF($A101<>\"\",DAY($A101),\"\")","v":""},null,{"$f":"IF(E101=\"Otra\",\"Escriba un nombre aquí\",IF(E101<>\"\",\"NA\",\"\"))","v":""},null,{"$f":"IF(G101=\"Otra\",\"Escriba un nombre aquí\",IF(G101<>\"\",\"NA\",\"\"))","v":""},null,{"$f":"IF(I101=\"Otra\",\"Escriba un nombre aquí\",IF(I101<>\"\",\"NA\",\"\"))","v":""},null,null,{"$f":"IFERROR(VLOOKUP(Table2[[#This Row],[Departamento (Admin 1)]],'P-codes'!$E$2:$F$15,2,FALSE),\"\")","v":""},null,{"$f":"IFERROR(VLOOKUP(Table2[[#This Row],[Municipio (Admin 2)]],'P-codes'!$C$2:$D$267,2,FALSE),\"\")","v":""},null,{"$f":"IF(P101=\"Otra\",\"Escriba un nombre aquí\",IF(P101<>\"\",\"NA\",\"\"))","v":""},null,{"$f":"IF(R101=\"Otra\",\"Escriba un nombre aquí\",IF(R101<>\"\",\"NA\",\"\"))","v":""},null,null,null,null,null,null,{"$f":"IF(SUM(Table2[[#This Row],[Total de hogares asistidos en el periodo entre reportes]],Table2[[#This Row],[Total de hogares asistidos en el periodo entre reportes2]:[De este total son hogares desplazados]])<>0,IF(SUM(Table2[[#This Row],[Total de hogares asistidos en el periodo entre reportes2]:[De este total son hogares desplazados]])=Table2[[#This Row],[Total de hogares asistidos en el periodo entre reportes]],0,1),\"\")","v":""},null,null,null,null,null,null,null,{"$f":"IF(SUM(Table2[[#This Row],[Total de personas asistidas en el periodo entre reportes]],Table2[[#This Row],[De este total son niñas de 0 a 18 años]:[De este total son hombres de 60 años o mas]])<>0,IF(SUM(Table2[[#This Row],[De este total son niñas de 0 a 18 años]:[De este total son hombres de 60 años o mas]])=Table2[[#This Row],[Total de personas asistidas en el periodo entre reportes]],0,1),\"\")","v":""}]

{"sheet":"Listas","index":2,"n_rows":13,"n_cols":9,"rows_kept":13,"cut":false,"hidden":false,"merged":[]}
["Mes","Organización lider","Organización implementadora","Donante","Tipo de organización","Estatus","Actividad sectorial","Modalidad","Sí/No"]
["enero","ACNUR","X","A","Agencia de Naciones Unidas","Planificada","Alojamiento transitorio","Ayuda en especie","Sí"]
["febrero","Consejo Noruego para Refugiados","Y","B","Entidad del Gobierno","En curso","Reparación de viviendas","Transferencia de dinero efectivo (incondicional)","No"]
["marzo","Cruz Roja Salvadoreña","Z","C","ONG Internacional con oficina en El Salvador","Completada","Dinero en efectivo para el alquiler de viviendas provisorias","Transferencia de dinero efectivo (condicionado)"]
["abril","Dirección General de Protección Civil","Otra","Otra","Sociedad Nacional de la Cruz roja","Cancelada","NFIs (kits de construcción y domésticos)","Cupones"]
["mayo","FUNDASAL",null,null,null,"Duplicada","Refuerzo de las capacidades de preparación y respuesta de las organizaciones nacionales que trabajan en asuntos humanitarios ","Servicios"]
["junio","Habitat para la Humanidad El Salvador",null,null,null,null,"Otra","Asistencia de modalidad mixta"]
["julio","OIM",null,null,null,null,null,"Otra"]
["agosto","Save the Children"]
["septiembre","TECHO"]
["octubre","Otra"]
["noviembre"]
["diciembre"]

{"sheet":"P-codes","index":3,"n_rows":267,"n_cols":9,"rows_kept":267,"cut":false,"hidden":false,"merged":[]}
["Adm1_name","Adm1_pcode","Adm2_name","Adm2_pcode","Adm1_name","Adm1_pcode",null,null,""]
["Ahuachapán","SV01","Ahuachapán","SV0101","Ahuachapán","SV01"]
["Ahuachapán","SV01","Apaneca","SV0102","Cabañas","SV02"]
["Ahuachapán","SV01","Atiquizaya","SV0103","Chalatenango","SV03"]
["Ahuachapán","SV01","Concepción de Ataco","SV0104","Cuscatlán","SV04"]
["Ahuachapán","SV01","El Refugio","SV0105","La Libertad","SV05"]
["Ahuachapán","SV01","Guaymango","SV0106","La Paz","SV06"]
["Ahuachapán","SV01","Jujutla","SV0107","La Unión","SV07"]
["Ahuachapán","SV01","San Francisco Menéndez","SV0108","Morazán","SV08"]
["Ahuachapán","SV01","San Lorenzo","SV0109","San Miguel","SV09"]
["Ahuachapán","SV01","San Pedro Puxtla","SV0110","San Salvador","SV10"]
["Ahuachapán","SV01","Tacuba","SV0111","San Vicente","SV11"]
["Ahuachapán","SV01","Turín","SV0112","Santa Ana","SV12"]
["Cabañas","SV02","Cinquera","SV0201","Sonsonate","SV13"]
["Cabañas","SV02","Guacotecti","SV0202","Usulután","SV14"]
["Cabañas","SV02","Ilobasco","SV0203"]
["Cabañas","SV02","Jutiapa","SV0204"]
["Cabañas","SV02","San Isidro","SV0205"]
["Cabañas","SV02","Sensuntepeque","SV0206"]
["Cabañas","SV02","Tejutepeque","SV0207"]
["Cabañas","SV02","Victoria","SV0208"]
["Cabañas","SV02","Dolores","SV0209"]
["Chalatenango","SV03","Agua Caliente","SV0301"]
["Chalatenango","SV03","Arcatao","SV0302"]
["Chalatenango","SV03","Azacualpa","SV0303"]
["Chalatenango","SV03","Citalá","SV0304"]
["Chalatenango","SV03","Comalapa","SV0305"]
["Chalatenango","SV03","Concepción Quezaltepeque","SV0306"]
["Chalatenango","SV03","Chalatenango","SV0307"]
["Chalatenango","SV03","Dulce Nombre de María","SV0308"]
["Chalatenango","SV03","El Carrizal","SV0309"]
["Chalatenango","SV03","El Paraíso","SV0310"]
["Chalatenango","SV03","La Laguna","SV0311"]
["Chalatenango","SV03","La Palma","SV0312"]
["Chalatenango","SV03","La Reina","SV0313"]
["Chalatenango","SV03","Las Vueltas","SV0314"]
["Chalatenango","SV03","Nombre de Jesús","SV0315"]
["Chalatenango","SV03","Nueva Concepción","SV0316"]
["Chalatenango","SV03","Nueva Trinidad","SV0317"]
["Chalatenango","SV03","Ojos de Agua","SV0318"]
["Chalatenango","SV03","Potonico","SV0319"]
["Chalatenango","SV03","San Antonio de la Cruz","SV0320"]
["Chalatenango","SV03","San Antonio Los Ranchos","SV0321"]
["Chalatenango","SV03","San Fernando","SV0322"]
["Chalatenango","SV03","San Francisco Lempa","SV0323"]
["Chalatenango","SV03","San Francisco Morazán","SV0324"]
["Chalatenango","SV03","San Ignacio","SV0325"]
["Chalatenango","SV03","San Isidro Labrador","SV0326"]
["Chalatenango","SV03","San José Cancasque","SV0327"]
["Chalatenango","SV03","San José Las Flores","SV0328"]
["Chalatenango","SV03","San Luis del Carmen","SV0329"]
["Chalatenango","SV03","San Miguel de Mercedes","SV0330"]
["Chalatenango","SV03","San Rafael","SV0331"]
["Chalatenango","SV03","Santa Rita","SV0332"]
["Chalatenango","SV03","Tejutla","SV0333"]
["Chalatenango","SV03","Embalse Cerron Grande","SV0399"]
["Cuscatlán","SV04","Candelaria","SV0401"]
["Cuscatlán","SV04","Cojutepeque","SV0402"]
["Cuscatlán","SV04","El Carmen","SV0403"]
["Cuscatlán","SV04","El Rosario","SV0404"]
["Cuscatlán","SV04","Monte San Juan","SV0405"]
["Cuscatlán","SV04","Oratorio de Concepción","SV0406"]
["Cuscatlán","SV04","San Bartolomé Perulapía","SV0407"]
["Cuscatlán","SV04","San Cristóbal","SV0408"]
["Cuscatlán","SV04","San José Guayabal","SV0409"]
["Cuscatlán","SV04","San Pedro Perulapán","SV0410"]
["Cuscatlán","SV04","San Rafael Cedros","SV0411"]
["Cuscatlán","SV04","San Ramón","SV0412"]
["Cuscatlán","SV04","Santa Cruz Analquito","SV0413"]
["Cuscatlán","SV04","Santa Cruz Michapa","SV0414"]
["Cuscatlán","SV04","Suchitoto","SV0415"]
["Cuscatlán","SV04","Tenancingo","SV0416"]
["La Libertad","SV05","Antiguo Cuscatlán","SV0501"]
["La Libertad","SV05","Chiltiupán","SV0502"]
["La Libertad","SV05","Ciudad Arce","SV0503"]
["La Libertad","SV05","Colón","SV0504"]
["La Libertad","SV05","Comasagua","SV0505"]
["La Libertad","SV05","Huizúcar","SV0506"]
["La Libertad","SV05","Jayaque","SV0507"]
["La Libertad","SV05","Jicalapa","SV0508"]
["La Libertad","SV05","La Libertad","SV0509"]
["La Libertad","SV05","Nueva San Salvador","SV0510"]
["La Libertad","SV05","Nuevo Cuscatlán","SV0511"]
["La Libertad","SV05","Opico","SV0512"]
["La Libertad","SV05","Quezaltepeque","SV0513"]
["La Libertad","SV05","Sacacoyo","SV0514"]
["La Libertad","SV05","San José Villanueva","SV0515"]
["La Libertad","SV05","San Matías","SV0516"]
["La Libertad","SV05","San Pablo Tacachico","SV0517"]
["La Libertad","SV05","Talnique","SV0518"]
["La Libertad","SV05","Tamanique","SV0519"]
["La Libertad","SV05","Teotepeque","SV0520"]
["La Libertad","SV05","Tepecoyo","SV0521"]
["La Libertad","SV05","Zaragoza","SV0522"]
["La Paz","SV06","Cuyultitán","SV0601"]
["La Paz","SV06","El Rosario","SV0602"]
["La Paz","SV06","Jerusalén","SV0603"]
["La Paz","SV06","Mercedes La Ceiba","SV0604"]
["La Paz","SV06","Olocuilta","SV0605"]
["La Paz","SV06","Paraíso de Osorio","SV0606"]
["La Paz","SV06","San Antonio Masahuat","SV0607"]
["La Paz","SV06","San Emigdio","SV0608"]
["La Paz","SV06","San Francisco Chinameca","SV0609"]
["La Paz","SV06","San Juan Nonualco","SV0610"]
["La Paz","SV06","San Juan Talpa","SV0611"]
["La Paz","SV06","San Juan Tepezontes","SV0612"]
["La Paz","SV06","San Luis La Herradura","SV0613"]
["La Paz","SV06","San Luis Talpa","SV0614"]
["La Paz","SV06","San Miguel Tepezontes","SV0615"]
["La Paz","SV06","San Pedro Masahuat","SV0616"]
["La Paz","SV06","San Pedro Nonualco","SV0617"]
["La Paz","SV06","San Rafael Obrajuelo","SV0618"]
["La Paz","SV06","Santa María Ostuma","SV0619"]
["La Paz","SV06","Santiago Nonualco","SV0620"]
["La Paz","SV06","Tapalhuaca","SV0621"]
["La Paz","SV06","Zacatecoluca","SV0622"]
["La Unión","SV07","Anamorós","SV0701"]
["La Unión","SV07","Bolívar","SV0702"]
["La Unión","SV07","Concepción de Oriente","SV0703"]
["La Unión","SV07","Conchagua","SV0704"]
["La Unión","SV07","El Carmen","SV0705"]
["La Unión","SV07","El Sauce","SV0706"]
["La Unión","SV07","Intipucá","SV0707"]
["La Unión","SV07","La Unión","SV0708"]
["La Unión","SV07","Lislique","SV0709"]
["La Unión","SV07","Meanguera del Golfo","SV0710"]
["La Unión","SV07","Nueva Esparta","SV0711"]
["La Unión","SV07","Pasaquina","SV0712"]
["La Unión","SV07","Polorós","SV0713"]
["La Unión","SV07","San Alejo","SV0714"]
["La Unión","SV07","San José","SV0715"]
["La Unión","SV07","Santa Rosa de Lima","SV0716"]
["La Unión","SV07","Yayantique","SV0717"]
["La Unión","SV07","Yucuaiquín","SV0718"]
["Morazán","SV08","Arambala","SV0801"]
["Morazán","SV08","Cacaopera","SV0802"]
["Morazán","SV08","Chilanga","SV0803"]
["Morazán","SV08","Corinto","SV0804"]
["Morazán","SV08","Delicias de Concepción","SV0805"]
["Morazán","SV08","El Divisadero","SV0806"]
["Morazán","SV08","El Rosario","SV0807"]
["Morazán","SV08","Gualococti","SV0808"]
["Morazán","SV08","Guatajiagua","SV0809"]
["Morazán","SV08","Joateca","SV0810"]
["Morazán","SV08","Jocoaitique","SV0811"]
["Morazán","SV08","Jocoro","SV0812"]
["Morazán","SV08","Lolotiquillo","SV0813"]
["Morazán","SV08","Meanguera","SV0814"]
["Morazán","SV08","Osicala","SV0815"]
["Morazán","SV08","Perquín","SV0816"]
["Morazán","SV08","San Carlos","SV0817"]
["Morazán","SV08","San Fernando","SV0818"]
["Morazán","SV08","San Francisco Gotera","SV0819"]
["Morazán","SV08","San Isidro","SV0820"]
["Morazán","SV08","San Simón","SV0821"]
["Morazán","SV08","Sensembra","SV0822"]
["Morazán","SV08","Sociedad","SV0823"]
["Morazán","SV08","Torola","SV0824"]
["Morazán","SV08","Yamabal","SV0825"]
["Morazán","SV08","Yoloaiquín","SV0826"]
["San Miguel","SV09","Carolina","SV0901"]
["San Miguel","SV09","Chapeltique","SV0902"]
["San Miguel","SV09","Chinameca","SV0903"]
["San Miguel","SV09","Chirilagua","SV0904"]
["San Miguel","SV09","Ciudad Barrios","SV0905"]
["San Miguel","SV09","Comacarán","SV0906"]
["San Miguel","SV09","El Tránsito","SV0907"]
["San Miguel","SV09","Lolotique","SV0908"]
["San Miguel","SV09","Moncagua","SV0909"]
["San Miguel","SV09","Nueva Guadalupe","SV0910"]
["San Miguel","SV09","Nuevo Edén de San Juan","SV0911"]
["San Miguel","SV09","Quelepa","SV0912"]
["San Miguel","SV09","San Antonio","SV0913"]
["San Miguel","SV09","San Gerardo","SV0914"]
["San Miguel","SV09","San Jorge","SV0915"]
["San Miguel","SV09","San Luis de la Reina","SV0916"]
["San Miguel","SV09","San Miguel","SV0917"]
["San Miguel","SV09","San Rafael","SV0918"]
["San Miguel","SV09","Sesori","SV0919"]
["San Miguel","SV09","Uluazapa","SV0920"]
["San Salvador","SV10","Aguilares","SV1001"]
["San Salvador","SV10","Apopa","SV1002"]
["San Salvador","SV10","Ayutuxtepeque","SV1003"]
["San Salvador","SV10","Cuscatancingo","SV1004"]
["San Salvador","SV10","El Paisnal","SV1005"]
["San Salvador","SV10","Guazapa","SV1006"]
["San Salvador","SV10","Ilopango","SV1007"]
["San Salvador","SV10","Mejicanos","SV1008"]
["San Salvador","SV10","Nejapa","SV1009"]
["San Salvador","SV10","Panchimalco","SV1010"]
["San Salvador","SV10","Rosario de Mora","SV1011"]
["San Salvador","SV10","San Marcos","SV1012"]
["San Salvador","SV10","San Martín","SV1013"]
["San Salvador","SV10","San Salvador","SV1014"]
["San Salvador","SV10","Santiago Texacuangos","SV1015"]
["San Salvador","SV10","Santo Tomás","SV1016"]
["San Salvador","SV10","Soyapango","SV1017"]
["San Salvador","SV10","Tonacatepeque","SV1018"]
["San Salvador","SV10","Delgado","SV1019"]
["San Salvador","SV10","Lago de Llopango","SV1099"]
["San Vicente","SV11","Apastepeque","SV1101"]
["San Vicente","SV11","Guadalupe","SV1102"]
["San Vicente","SV11","San Cayetano Istepeque","SV1103"]
["San Vicente","SV11","San Esteban Catarina","SV1104"]
["San Vicente","SV11","San Ildefonso","SV1105"]
["San Vicente","SV11","San Lorenzo","SV1106"]
["San Vicente","SV11","San Sebastián","SV1107"]
["San Vicente","SV11","San Vicente","SV1108"]
["San Vicente","SV11","Santa Clara","SV1109"]
["San Vicente","SV11","Santo Domingo","SV1110"]
["San Vicente","SV11","Tecoluca","SV1111"]
["San Vicente","SV11","Tepetitán","SV1112"]
["San Vicente","SV11","Verapaz","SV1113"]
["Santa Ana","SV12","Candelaria de la Frontera","SV1201"]
["Santa Ana","SV12","Chalchuapa","SV1202"]
["Santa Ana","SV12","Coatepeque","SV1203"]
["Santa Ana","SV12","El Congo","SV1204"]
["Santa Ana","SV12","El Porvenir","SV1205"]
["Santa Ana","SV12","Masahuat","SV1206"]
["Santa Ana","SV12","Metapán","SV1207"]
["Santa Ana","SV12","San Antonio Pajonal","SV1208"]
["Santa Ana","SV12","San Sebastián Salitrillo","SV1209"]
["Santa Ana","SV12","Santa Ana","SV1210"]
["Santa Ana","SV12","Santa Rosa Guachipilín","SV1211"]
["Santa Ana","SV12","Santiago de la Frontera","SV1212"]
["Santa Ana","SV12","Texistepeque","SV1213"]
["Santa Ana","SV12","Lago de Guija","SV1298"]
["Santa Ana","SV12","Lago de Coatepeque","SV1299"]
["Sonsonate","SV13","Acajutla","SV1301"]
["Sonsonate","SV13","Armenia","SV1302"]
["Sonsonate","SV13","Caluco","SV1303"]
["Sonsonate","SV13","Cuisnahuat","SV1304"]
["Sonsonate","SV13","Izalco","SV1305"]
["Sonsonate","SV13","Juayúa","SV1306"]
["Sonsonate","SV13","Nahuizalco","SV1307"]
["Sonsonate","SV13","Nahulingo","SV1308"]
["Sonsonate","SV13","Salcoatitán","SV1309"]
["Sonsonate","SV13","San Antonio del Monte","SV1310"]
["Sonsonate","SV13","San Julián","SV1311"]
["Sonsonate","SV13","Santa Catarina Masahuat","SV1312"]
["Sonsonate","SV13","Santa Isabel Ishuatán","SV1313"]
["Sonsonate","SV13","Santo Domingo","SV1314"]
["Sonsonate","SV13","Sonsonate","SV1315"]
["Sonsonate","SV13","Sonzacate","SV1316"]
["Usulután","SV14","Alegría","SV1401"]
["Usulután","SV14","Berlín","SV1402"]
["Usulután","SV14","California","SV1403"]
["Usulután","SV14","Concepción Batres","SV1404"]
["Usulután","SV14","El Triunfo","SV1405"]
["Usulután","SV14","Ereguayquín","SV1406"]
["Usulután","SV14","Estanzuelas","SV1407"]
["Usulután","SV14","Jiquilisco","SV1408"]
["Usulután","SV14","Jucuapa","SV1409"]
["Usulután","SV14","Jucuarán","SV1410"]
["Usulután","SV14","Mercedes Umaña","SV1411"]
["Usulután","SV14","Nueva Granada","SV1412"]
["Usulután","SV14","Ozatlán","SV1413"]
["Usulután","SV14","Puerto El Triunfo","SV1414"]
["Usulután","SV14","San Agustín","SV1415"]
["Usulután","SV14","San Buenaventura","SV1416"]
["Usulután","SV14","San Dionisio","SV1417"]
["Usulután","SV14","San Francisco Javier","SV1418"]
["Usulután","SV14","Santa Elena","SV1419"]
["Usulután","SV14","Santa María","SV1420"]
["Usulután","SV14","Santiago de María","SV1421"]
["Usulután","SV14","Tecapán","SV1422"]
["Usulután","SV14","Usulután","SV1423"]

{"sheet":"Actividades","index":4,"n_rows":60,"n_cols":6,"rows_kept":60,"cut":false,"hidden":false,"merged":[]}
["Estatus de la actividad","(All)",null,null,"Estatus de la actividad","(All)"]
["Fecha de inicio de la actividad","(All)",null,null,"Fecha de inicio de la actividad","(All)"]
["Departamento (Admin 1)","(All)",null,null,"Organización lider","(All)"]
["Municipio (Admin 2)","(All)",null,null,"Donante","(All)"]
["Organización lider","(All)"]
["Donante","(All)",null,null,"Row Labels","Count of Actividad sectorial"]
[null,null,null,null,"Ahuachapán",1]
["Row Labels","Count of Actividad sectorial",null,null,"San Francisco Menéndez",1]
["Otra",1,null,null,"Cabañas",2]
["(blank)",null,null,null,"Sensuntepeque",2]
["Alojamiento transitorio",4,null,null,"Chalatenango",1]
["Reparación de viviendas",4,null,null,"Concepción Quezaltepeque",1]
["Dinero en efectivo para el alquiler",4,null,null,"Cuscatlán",1]
["NFIs (kits de construcción y domésticos)",4,null,null,"San Cristóbal",1]
["Refuerzo de las capacidades de preparación y respuesta de las organizaciones nacionales que trabajan en asuntos humanitarios ",3,null,null,"La Libertad",1]
["Grand Total",20,null,null,"Comasagua",1]
[null,null,null,null,"La Paz",2]
[null,null,null,null,"San Francisco Chinameca",1]
[null,null,null,null,"Santiago Nonualco",1]
[null,null,null,null,"La Unión",1]
["Estatus de la actividad","(All)",null,null,"El Sauce",1]
["Fecha de inicio de la actividad","(All)",null,null,"Morazán",2]
["Departamento (Admin 1)","(All)",null,null,"Gualococti",1]
["Municipio (Admin 2)","(All)",null,null,"Sensembra",1]
["Organización lider","(All)",null,null,"San Miguel",1]
["Donante","(All)",null,null,"Ciudad Barrios",1]
[null,null,null,null,"San Salvador",2]
["Row Labels","Count of Actividad sectorial",null,null,"Ilopango",1]
["Otra",1,null,null,"Rosario de Mora",1]
["(blank)",null,null,null,"San Vicente",1]
["Ayuda en especie",4,null,null,"San Esteban Catarina",1]
["Transferencia de dinero efectivo (incondicional)",4,null,null,"Santa Ana",1]
["Transferencia de dinero efectivo (condicionado)",3,null,null,"San Sebastián Salitrillo",1]
["Cupones",3,null,null,"Sonsonate",2]
["Servicios",3,null,null,"Cuisnahuat",1]
["Asistencia de modalidad mixta",2,null,null,"Santa Isabel Ishuatán",1]
["Grand Total",20,null,null,"Usulután",2]
[null,null,null,null,"Concepción Batres",1]
[null,null,null,null,"San Dionisio",1]
[null,null,null,null,"(blank)"]
[null,null,null,null,"(blank)"]
["Estatus de la actividad","(All)",null,null,"Grand Total",20]
["Fecha de inicio de la actividad","(All)"]
["Departamento (Admin 1)","(All)"]
["Municipio (Admin 2)","(All)"]
["Donante","(All)"]
[]
["Row Labels","Count of Actividad sectorial"]
["ACNUR",2]
["Consejo Noruego para Refugiados",2]
["Cruz Roja Salvadoreña",2]
["Dirección General de Protección Civil",2]
["FUNDASAL",2]
["Habitat para la Humanidad El Salvador",2]
["OIM",2]
["Otra",2]
["Save the Children",2]
["TECHO",2]
["(blank)"]
["Grand Total",20]

{"sheet":"Hogares","index":5,"n_rows":107,"n_cols":4,"rows_kept":107,"cut":false,"hidden":false,"merged":[]}
["Estatus de la actividad","(All)"]
["Fecha de inicio de la actividad","(All)"]
["Departamento (Admin 1)","(All)"]
["Municipio (Admin 2)","(All)"]
["Organización lider","(All)"]
["Donante","(All)"]
[]
["Row Labels","Sum of Total de hogares asistidos en el mes","Sum of Hogares de la comunidad de acogida","Sum of Hogares desplazados"]
["Otra",600,300,300]
["(blank)"]
["Alojamiento transitorio",2400,1200,900]
["Reparación de viviendas",1800,1200,1200]
["Dinero en efectivo para el alquiler de viviendas provisorias",2400,1200,1200]
["NFIs (kits de construcción y domésticos)",2400,900,1200]
["Refuerzo de las capacidades de preparación y respuesta de las organizaciones nacionales que trabajan en asuntos humanitarios ",1200,900,900]
["Grand Total",10800,5700,5700]
[]
[]
[]
[]
["Estatus de la actividad","(All)"]
["Fecha de inicio de la actividad","(All)"]
["Departamento (Admin 1)","(All)"]
["Municipio (Admin 2)","(All)"]
["Organización lider","(All)"]
["Donante","(All)"]
[]
["Row Labels","Sum of Total de hogares asistidos en el mes","Sum of Hogares de la comunidad de acogida","Sum of Hogares desplazados"]
["Otra",600,300,0]
["(blank)"]
["Ayuda en especie",2400,1200,1200]
["Transferencia de dinero efectivo (incondicional)",1200,1200,1200]
["Transferencia de dinero efectivo (condicionado)",1800,900,900]
["Cupones",1800,600,900]
["Servicios",1800,900,900]
["Asistencia de modalidad mixta",1200,600,600]
["Grand Total",10800,5700,5700]
[]
[]
[]
[]
["Estatus de la actividad","(All)"]
["Fecha de inicio de la actividad","(All)"]
["Departamento (Admin 1)","(All)"]
["Municipio (Admin 2)","(All)"]
["Donante","(All)"]
[]
["Row Labels","Sum of Total de hogares asistidos en el mes","Sum of Hogares de la comunidad de acogida","Sum of Hogares desplazados"]
["ACNUR",1200,600,600]
["Consejo Noruego para Refugiados",600,600,600]
["Cruz Roja Salvadoreña",1200,600,600]
["Dirección General de Protección Civil",1200,300,600]
["FUNDASAL",1200,600,600]
["Habitat para la Humanidad El Salvador",1200,600,300]
["OIM",1200,600,600]
["Otra",600,600,600]
["Save the Children",1200,600,600]
["TECHO",1200,600,600]
["(blank)"]
["Grand Total",10800,5700,5700]
[]
[]
[]
[]
[]
["Estatus de la actividad","(All)"]
["Fecha de inicio de la actividad","(All)"]
["Organización lider","(All)"]
["Donante","(All)"]
[]
["Row Labels","Sum of Total de hogares asistidos en el mes","Sum of Hogares de la comunidad de acogida","Sum of Hogares desplazados"]
["Ahuachapán",600,300,300]
["San Francisco Menéndez",600,300,300]
["Cabañas",0,600,600]
["Sensuntepeque",0,600,600]
["Chalatenango",600,300,300]
["Concepción Quezaltepeque",600,300,300]
["Cuscatlán",600,0,300]
["San Cristóbal",600,0,300]
["La Libertad",600,300,300]
["Comasagua",600,300,300]
["La Paz",1200,600,300]
["San Francisco Chinameca",600,300,300]
["Santiago Nonualco",600,300,0]
["La Unión",600,300,300]
["El Sauce",600,300,300]
["Morazán",1200,600,600]
["Gualococti",600,300,300]
["Sensembra",600,300,300]
["San Miguel",600,300,300]
["Ciudad Barrios",600,300,300]
["San Salvador",1200,600,600]
["Ilopango",600,300,300]
["Rosario de Mora",600,300,300]
["San Vicente",600,300,300]
["San Esteban Catarina",600,300,300]
["Santa Ana",600,300,300]
["San Sebastián Salitrillo",600,300,300]
["Sonsonate",1200,600,600]
["Cuisnahuat",600,300,300]
["Santa Isabel Ishuatán",600,300,300]
["Usulután",1200,600,600]
["Concepción Batres",600,300,300]
["San Dionisio",600,300,300]
["(blank)"]
["(blank)"]
["Grand Total",10800,5700,5700]

{"sheet":"Beneficiarios","index":6,"n_rows":107,"n_cols":8,"rows_kept":107,"cut":false,"hidden":false,"merged":[]}
["Estatus de la actividad","(All)"]
["Fecha de inicio de la actividad","(All)"]
["Departamento (Admin 1)","(All)"]
["Municipio (Admin 2)","(All)"]
["Organización lider","(All)"]
["Donante","(All)"]
[]
["Row Labels","Sum of Total de personas asistidas en el mes","Sum of Niñas de 0 a 17 años","Sum of Niños de 0 a 17 años","Sum of Mujeres de 18 a 59 años","Sum of Hombres de 18 a 59 años","Sum of Mujeres de 60 años o mas","Sum of Hombres de 60 años o mas"]
["Otra",3600,600,600,600,600,600,600]
["(blank)"]
["Alojamiento transitorio",14400,2400,2400,2400,1800,2400,2400]
["Reparación de viviendas",14400,2400,1800,2400,2400,2400,2400]
["Dinero en efectivo para el alquiler de viviendas provisorias",10800,2400,2400,2400,2400,1800,2400]
["NFIs (kits de construcción y domésticos)",14400,2400,2400,1800,2400,2400,2400]
["Refuerzo de las capacidades de preparación y respuesta de las organizaciones nacionales que trabajan en asuntos humanitarios ",10800,1200,1800,1800,1800,1800,1200]
["Grand Total",68400,11400,11400,11400,11400,11400,11400]
[]
[]
[]
[]
["Estatus de la actividad","(All)"]
["Fecha de inicio de la actividad","(All)"]
["Departamento (Admin 1)","(All)"]
["Municipio (Admin 2)","(All)"]
["Organización lider","(All)"]
["Donante","(All)"]
[]
["Row Labels","Sum of Total de personas asistidas en el mes","Sum of Niñas de 0 a 17 años","Sum of Niños de 0 a 17 años","Sum of Mujeres de 18 a 59 años","Sum of Hombres de 18 a 59 años","Sum of Mujeres de 60 años o mas","Sum of Hombres de 60 años o mas"]
["Otra",3600,600,600,600,600,600,600]
["(blank)"]
["Ayuda en especie",14400,2400,2400,2400,2400,2400,2400]
["Transferencia de dinero efectivo (incondicional)",10800,2400,2400,1800,2400,2400,1800]
["Transferencia de dinero efectivo (condicionado)",10800,1800,1800,1800,1800,1800,1800]
["Cupones",10800,1200,1800,1800,1200,1800,1800]
["Servicios",10800,1800,1800,1800,1800,1800,1800]
["Asistencia de modalidad mixta",7200,1200,600,1200,1200,600,1200]
["Grand Total",68400,11400,11400,11400,11400,11400,11400]
[]
[]
[]
[]
["Estatus de la actividad","(All)"]
["Fecha de inicio de la actividad","(All)"]
["Departamento (Admin 1)","(All)"]
["Municipio (Admin 2)","(All)"]
["Donante","(All)"]
[]
["Row Labels","Sum of Total de personas asistidas en el mes","Sum of Niñas de 0 a 17 años","Sum of Niños de 0 a 17 años","Sum of Mujeres de 18 a 59 años","Sum of Hombres de 18 a 59 años","Sum of Mujeres de 60 años o mas","Sum of Hombres de 60 años o mas"]
["ACNUR",7200,1200,1200,1200,1200,1200,1200]
["Consejo Noruego para Refugiados",7200,1200,600,1200,1200,1200,1200]
["Cruz Roja Salvadoreña",7200,1200,1200,1200,1200,1200,1200]
["Dirección General de Protección Civil",7200,1200,1200,600,1200,1200,1200]
["FUNDASAL",7200,1200,1200,1200,1200,1200,1200]
["Habitat para la Humanidad El Salvador",7200,1200,1200,1200,600,1200,1200]
["OIM",7200,1200,1200,1200,1200,1200,1200]
["Otra",7200,600,1200,1200,1200,1200,600]
["Save the Children",3600,1200,1200,1200,1200,600,1200]
["TECHO",7200,1200,1200,1200,1200,1200,1200]
["(blank)"]
["Grand Total",68400,11400,11400,11400,11400,11400,11400]
[]
[]
[]
[]
[]
["Estatus de la actividad","(All)"]
["Fecha de inicio de la actividad","(All)"]
["Organización lider","(All)"]
["Donante","(All)"]
[]
["Row Labels","Sum of Total de personas asistidas en el mes","Sum of Niñas de 0 a 17 años","Sum of Niños de 0 a 17 años","Sum of Mujeres de 18 a 59 años","Sum of Hombres de 18 a 59 años","Sum of Mujeres de 60 años o mas","Sum of Hombres de 60 años o mas"]
["Ahuachapán",3600,600,600,600,600,600,600]
["San Francisco Menéndez",3600,600,600,600,600,600,600]
["Cabañas",7200,1200,1200,1200,1200,1200,600]
["Sensuntepeque",7200,1200,1200,1200,1200,1200,600]
["Chalatenango",3600,600,600,600,600,600,600]
["Concepción Quezaltepeque",3600,600,600,600,600,600,600]
["Cuscatlán",3600,600,600,600,600,600,600]
["San Cristóbal",3600,600,600,600,600,600,600]
["La Libertad",3600,600,600,600,600,600,600]
["Comasagua",3600,600,600,600,600,600,600]
["La Paz",7200,1200,1200,1200,1200,600,1200]
["San Francisco Chinameca",3600,600,600,600,600,0,600]
["Santiago Nonualco",3600,600,600,600,600,600,600]
["La Unión",3600,600,600,600,600,600,600]
["El Sauce",3600,600,600,600,600,600,600]
["Morazán",3600,1200,1200,1200,600,1200,1200]
["Gualococti",3600,600,600,600,0,600,600]
["Sensembra",0,600,600,600,600,600,600]
["San Miguel",3600,600,600,600,600,600,600]
["Ciudad Barrios",3600,600,600,600,600,600,600]
["San Salvador",7200,600,1200,1200,1200,1200,1200]
["Ilopango",3600,600,600,600,600,600,600]
["Rosario de Mora",3600,0,600,600,600,600,600]
["San Vicente",3600,600,600,600,600,600,600]
["San Esteban Catarina",3600,600,600,600,600,600,600]
["Santa Ana",3600,600,0,600,600,600,600]
["San Sebastián Salitrillo",3600,600,0,600,600,600,600]
["Sonsonate",7200,1200,1200,1200,1200,1200,1200]
["Cuisnahuat",3600,600,600,600,600,600,600]
["Santa Isabel Ishuatán",3600,600,600,600,600,600,600]
["Usulután",7200,1200,1200,600,1200,1200,1200]
["Concepción Batres",3600,600,600,600,600,600,600]
["San Dionisio",3600,600,600,0,600,600,600]
["(blank)"]
["(blank)"]
["Grand Total",68400,11400,11400,11400,11400,11400,11400]

{"sheet":"Tendencias","index":7,"n_rows":68,"n_cols":13,"rows_kept":68,"cut":false,"hidden":false,"merged":[]}
[]
["Estatus de la actividad","(All)"]
["Departamento (Admin 1)","(All)"]
["Municipio (Admin 2)","(All)"]
["Organización lider","(All)"]
["Donante","(All)"]
[]
["Count of Actividad sectorial","Column Labels"]
[null,"<01/01/2022","2022",null,null,null,null,null,null,"2022 Total","2024","2046","Grand Total"]
[null,null,"Qtr1",null,"Qtr1 Total","Qtr3","Qtr3 Total","Qtr4","Qtr4 Total"]
["Row Labels",null,"Jan","Feb",null,"Aug",null,"Dec"]
["Otra",null,null,null,null,null,null,null,null,null,null,1,1]
["(blank)"]
["Alojamiento transitorio",null,1,1,2,null,null,2,2,4,null,null,4]
["Reparación de viviendas",null,2,null,2,null,null,1,1,3,1,null,4]
["Dinero en efectivo para el alquiler de viviendas provisorias",null,1,1,2,null,null,2,2,4,null,null,4]
["NFIs (kits de construcción y domésticos)",null,null,1,1,1,1,1,1,3,1,null,4]
["Refuerzo de las capacidades de preparación y respuesta de las organizaciones nacionales que trabajan en asuntos humanitarios ",null,null,2,2,null,null,1,1,3,null,null,3]
["Grand Total",null,4,5,9,1,1,7,7,17,2,1,20]
[]
[]
[]
[]
[]
[]
[]
["Estatus de la actividad","(All)"]
["Departamento (Admin 1)","(All)"]
["Municipio (Admin 2)","(All)"]
["Organización lider","(All)"]
["Donante","(All)"]
[]
["Count of Actividad sectorial","Column Labels"]
[null,"<01/01/2022","2022",null,null,null,null,null,null,"2022 Total","2024","2046","Grand Total"]
[null,null,"Qtr1",null,"Qtr1 Total","Qtr3","Qtr3 Total","Qtr4","Qtr4 Total"]
["Row Labels",null,"Jan","Feb",null,"Aug",null,"Dec"]
["Otra",null,1,null,1,null,null,null,null,1,null,null,1]
["(blank)"]
["Ayuda en especie",null,1,null,1,1,1,2,2,4,null,null,4]
["Transferencia de dinero efectivo (incondicional)",null,null,1,1,null,null,2,2,3,1,null,4]
["Transferencia de dinero efectivo (condicionado)",null,null,1,1,null,null,1,1,2,null,1,3]
["Cupones",null,null,1,1,null,null,2,2,3,null,null,3]
["Servicios",null,null,2,2,null,null,null,null,2,1,null,3]
["Asistencia de modalidad mixta",null,2,null,2,null,null,null,null,2,null,null,2]
["Grand Total",null,4,5,9,1,1,7,7,17,2,1,20]
[]
[]
["Estatus de la actividad","(All)"]
["Departamento (Admin 1)","(All)"]
["Municipio (Admin 2)","(All)"]
["Donante","(All)"]
[]
["Count of Actividad sectorial","Column Labels"]
[null,"<01/01/2022","2022",null,null,null,null,null,null,"2022 Total","2024","2046","Grand Total"]
[null,null,"Qtr1",null,"Qtr1 Total","Qtr3","Qtr3 Total","Qtr4","Qtr4 Total"]
["Row Labels",null,"Jan","Feb",null,"Aug",null,"Dec"]
["ACNUR",null,null,1,1,null,null,1,1,2,null,null,2]
["Consejo Noruego para Refugiados",null,1,null,1,null,null,1,1,2,null,null,2]
["Cruz Roja Salvadoreña",null,null,null,null,null,null,2,2,2,null,null,2]
["Dirección General de Protección Civil",null,null,null,null,null,null,1,1,1,1,null,2]
["FUNDASAL",null,null,1,1,null,null,null,null,1,null,1,2]
["Habitat para la Humanidad El Salvador",null,1,null,1,null,null,1,1,2,null,null,2]
["OIM",null,1,null,1,null,null,null,null,1,1,null,2]
["Otra",null,null,1,1,null,null,1,1,2,null,null,2]
["Save the Children",null,1,1,2,null,null,null,null,2,null,null,2]
["TECHO",null,null,1,1,1,1,null,null,2,null,null,2]
["(blank)"]
["Grand Total",null,4,5,9,1,1,7,7,17,2,1,20]